Workbook

Sheet Calculator
C3: Residential Cost Comparison Calculator | I3: Updated 3/5/19
C6: =IF(ISNUMBER(SEARCH("-1",D9)),"Enter Your Total Monthly Usage (kWh)","") -> Enter Your Total Monthly Usage (kWh) | E6: Select Your Billing Month | F6: May-Oct
C7: (usage details can typically be found on the third page of your bill) | E7: (select which range of months your bill falls in)
C8: Additional Rate Options
C9: Non-Basic Rate Schedule | D9: Basic Residential (E-1)
C10: =IF(VLOOKUP($D$9,Rates!$A$2:$H$16,3,FALSE)=FALSE,"","Summer Peak Usage (kWh)") ->  | F10: =IF(VLOOKUP($D$9,Rates!$A$2:$H$16,6,FALSE)=FALSE,"","Winter Peak Usage (kWh)") -> 
C11: =IF(VLOOKUP($D$9,Rates!$A$2:$H$16,4,FALSE)=FALSE,"","Summer Partial Peak Usage (kWh)") ->  | F11: =IF(VLOOKUP($D$9,Rates!$A$2:$H$16,7,FALSE)=FALSE,"","Winter Partial Peak Usage (kWh)") -> 
C12: =IF(VLOOKUP($D$9,Rates!$A$2:$H$16,5,FALSE)=FALSE,"","Summer Off Peak Usage (kWh)") ->  | F12: =IF(VLOOKUP($D$9,Rates!$A$2:$H$16,8,FALSE)=FALSE,"","Winter Off Peak Usage (kWh)") -> 
D14: Optional Information (Default Values Represent a Typical Customer)
C15: Days in Billing Cycle | D15: 31 | F15: Baseline Territory (click for map) | G15: X
C16: Primary Heating Source | D16: Gas | F16: PCIA Vintage (from PG&E Delivery bill page) | G16: 2014
E19: PG&E Service | F19: SCP CleanStart | G19: SCP EverGreen
D20: PG&E Delivery Costs | E20: =IFERROR('Data & Calculations'!B76,0) -> 0 | F20: =E20 -> 0 | G20: =E20 -> 0
D21: Generation Costs | E21: ='Data & Calculations'!B77 -> 0 | F21: ='Data & Calculations'!C77 -> 0 | G21: =F21+'Data & Calculations'!I59*'Data & Calculations'!B71 -> 0
D22: Additional PG&E Fees | E22: -- | F22: ='Data & Calculations'!C78 -> 0 | G22: =F22 -> 0
D23: Energy Comission Surcharge | E23: ='Data & Calculations'!B79 -> 0 | F23: ='Data & Calculations'!C79 -> 0 | G23: ='Data & Calculations'!C79 -> 0
D24: Total Electric Charges | E24: =SUM(E20:E23) -> 0 | F24: =SUM(F20:F23) -> 0 | G24: =SUM(G20:G23) -> 0
C27: Frequently Asked Questions:
C28: Q: I have the CARE (California Affordable Rates for Energy) discount. Will I still receive this with SCP?
C29: A: CARE is a state-mandated program that all customers pay into. You'll receive your full CARE discount as a customer of PG&E or SCP. You can select CARE rates under Advanced Options above.
C31: Q: I have medical equipment at home and am granted a special rate by PG&E (Medical Baseline). Will I still receive this with SCP?
C32: A: SCP customers remain eligible for medical baseline and will still receive this discount in-full. Additionally, Medical Baseline customers are exempt from additional PG&E fees.
C34: Q: Does SCP offer special rates for Electric Vehicle owners?
C35: A: Yes, select "Advanced Options" above and select the Electric Vehicle rate. You will need to enter your time-of-use based usage.
C37: Q: Are SCP customers exempt from tiered rates, where I pay higher rates as I use more electricity each month?
C38: A: No. Tiered rates are part of PG&E's rate structure mandated by the California Public Utilities Commission, and are assessed through only PG&E delivery charges.
C41: Energy Content Breakdown | D41: Renewable Content | E41: Emissions Factor* | F41: Estimated Emissions | G41: Service Description
C42: SCP CleanStart (45%) | D42: 0.45 | E42: 127.98 | F42: =CONCATENATE(ROUND(SUM(D$10:G$12,D$6)*E42/1000,1)," lbs.") -> 0 lbs. | G42: Basic SCP service (default)
C43: SCP EverGreen (100%) | D43: 1 | E43: 53 | F43: =CONCATENATE(ROUND(SUM(D$10:G$12,D$6)*E43/1000,1)," lbs.") -> 0 lbs. | G43: Optional 100% renewable SCP service
C44: PG&E Standard | D44: 0.33 | E44: 405 | F44: 0 lbs. | G44: Basic PG&E service (opt out)
C45: PG&E Solar Choice (100%) | D45: 1 | E45: 0 | F45: 0 lbs. | G45: Optional 100% solar PG&E service
C46: * Emissions factors as of most currently available calendar year for both PG&E and SCP as reported to The Climate Registry, this may result in different years being presented.

Sheet Rebundled Rates (hidden)
B1: Rates for Usage | I1: Rates for Surplus Generation (Excess NEM Credits at billing date)
A2: =Rates!A3 -> Basic Residential (E-1) | B2: SCP Rebundled | C2: PG&E Bundled | D2: Result | I2: SCP Rebundled | J2: PG&E Bundled | K2: Result
A3: Up to Baseline | B3: =C3-VLOOKUP($A$2,Rates!$A$23:$H$38,2,0)+VLOOKUP($A$2,Rates!$A$41:$H$56,2,0)+VLOOKUP(MAX('Data & Calculations'!$A$40:$A$46),'Data & Calculations'!$A$40:$D$46,4,0) -> 0.20933 | C3: =VLOOKUP(A$2,Rates!$A$2:$AB$20,2,0) -> 0.21775 | D3: SCP's rate is | E3: =IF(B3<C3,"lower by","higher by") -> lower by | F3: =ABS(C3-B3) -> 0.00842 | G3: per kWh | I3: =B3+0.01 -> 0.21933 | J3: =C3 -> 0.21775 | K3: SCP's rate is | L3: =IF(I3<J3,"lower by","higher by") -> higher by | M3: =ABS(J3-I3) -> 0.00158 | N3: per kWh
A4: 100%-200% of Baseline | B4: =C4-VLOOKUP($A$2,Rates!$A$23:$H$38,2,0)+VLOOKUP($A$2,Rates!$A$41:$H$56,2,0)+VLOOKUP(MAX('Data & Calculations'!$A$40:$A$46),'Data & Calculations'!$A$40:$D$46,4,0) -> 0.2656 | C4: =VLOOKUP(A$2,Rates!$A$2:$AB$20,12,0) -> 0.27402 | D4: SCP's rate is | E4: =IF(B4<C4,"lower by","higher by") -> lower by | F4: =ABS(C4-B4) -> 0.00842 | G4: per kWh | I4: =B4+0.01 -> 0.2756 | J4: =C4 -> 0.27402 | K4: SCP's rate is | L4: =IF(I4<J4,"lower by","higher by") -> higher by | M4: =ABS(J4-I4) -> 0.00158 | N4: per kWh
A5: High Usage (over 400%) | B5: =C5-VLOOKUP($A$2,Rates!$A$23:$H$38,2,0)+VLOOKUP($A$2,Rates!$A$41:$H$56,2,0)+VLOOKUP(MAX('Data & Calculations'!$A$40:$A$46),'Data & Calculations'!$A$40:$D$46,4,0) -> 0.47167 | C5: =VLOOKUP(A$2,Rates!$A$2:$AB$20,21,0) -> 0.48009 | D5: SCP's rate is | E5: lower by | F5: 0.00842 | G5: per kWh | I5: 0.48167 | J5: 0.48009 | K5: SCP's rate is | L5: higher by | M5: 0.00158 | N5: per kWh
A7: =Rates!A5 -> E-TOU-A | B7: SCP Rebundled | C7: PG&E Bundled | D7: Result | I7: SCP Rebundled | J7: PG&E Bundled | K7: Result
A8: Summer Peak
A9: … up to Baseline | B9: =C9-VLOOKUP($A$7,Rates!$A$23:$H$38,3,0)+VLOOKUP($A$7,Rates!$A$41:$H$56,3,0)+VLOOKUP(MAX('Data & Calculations'!$A$40:$A$46),'Data & Calculations'!$A$40:$D$46,4,0) -> 0.30684 | C9: =VLOOKUP(A$7,Rates!$A$2:$AB$20,3,0) -> 0.31732 | D9: SCP's rate is | E9: =IF(B9<C9,"lower by","higher by") -> lower by | F9: =ABS(C9-B9) -> 0.01048 | G9: per kWh | I9: =B9+0.01 -> 0.31684 | J9: =C9 -> 0.31732 | K9: SCP's rate is | L9: =IF(I9<J9,"lower by","higher by") -> lower by | M9: =ABS(J9-I9) -> 0.00048 | N9: per kWh
A10: … above Baseline | B10: =C10-VLOOKUP($A$7,Rates!$A$23:$H$38,3,0)+VLOOKUP($A$7,Rates!$A$41:$H$56,3,0)+VLOOKUP(MAX('Data & Calculations'!$A$40:$A$46),'Data & Calculations'!$A$40:$D$46,4,0) -> 0.38685 | C10: =VLOOKUP(A$7,Rates!$A$2:$AB$20,13,0) -> 0.39733 | D10: SCP's rate is | E10: lower by | F10: 0.01048 | G10: per kWh | I10: =B10+0.01 -> 0.39685 | J10: =C10 -> 0.39733 | K10: SCP's rate is | L10: lower by | M10: 0.00048 | N10: per kWh
A11: Summer Off Peak
A12: … up to Baseline | B12: =C12-VLOOKUP($A$7,Rates!$A$23:$H$38,5,0)+VLOOKUP($A$7,Rates!$A$41:$H$56,5,0)+VLOOKUP(MAX('Data & Calculations'!$A$40:$A$46),'Data & Calculations'!$A$40:$D$46,4,0) -> 0.23278 | C12: =VLOOKUP(A$7,Rates!$A$2:$AB$20,5,0) -> 0.24174 | D12: SCP's rate is | E12: =IF(B12<C12,"lower by","higher by") -> lower by | F12: =ABS(C12-B12) -> 0.00896 | G12: per kWh | I12: =B12+0.01 -> 0.24278 | J12: =C12 -> 0.24174 | K12: SCP's rate is | L12: higher by | M12: 0.00104 | N12: per kWh
A13: … above Baseline | B13: =C13-VLOOKUP($A$7,Rates!$A$23:$H$38,5,0)+VLOOKUP($A$7,Rates!$A$41:$H$56,5,0)+VLOOKUP(MAX('Data & Calculations'!$A$40:$A$46),'Data & Calculations'!$A$40:$D$46,4,0) -> 0.31279 | C13: =VLOOKUP(A$7,Rates!$A$2:$AB$20,15,0) -> 0.32175 | D13: SCP's rate is | E13: lower by | F13: 0.00896 | G13: per kWh | I13: =B13+0.01 -> 0.32279 | J13: =C13 -> 0.32175 | K13: SCP's rate is | L13: higher by | M13: 0.00104 | N13: per kWh
A14: Winter Peak
A15: … up to Baseline | B15: =C15-VLOOKUP($A$7,Rates!$A$23:$H$38,6,0)+VLOOKUP($A$7,Rates!$A$41:$H$56,6,0)+VLOOKUP(MAX('Data & Calculations'!$A$40:$A$46),'Data & Calculations'!$A$40:$D$46,4,0) -> 0.19123 | C15: =VLOOKUP(A$7,Rates!$A$2:$AB$20,6,0) -> 0.19934 | D15: SCP's rate is | E15: lower by | F15: 0.00811 | G15: per kWh | I15: =B15+0.01 -> 0.20123 | J15: =C15 -> 0.19934 | K15: SCP's rate is | L15: higher by | M15: 0.00189 | N15: per kWh
A16: … above Baseline | B16: =C16-VLOOKUP($A$7,Rates!$A$23:$H$38,6,0)+VLOOKUP($A$7,Rates!$A$41:$H$56,6,0)+VLOOKUP(MAX('Data & Calculations'!$A$40:$A$46),'Data & Calculations'!$A$40:$D$46,4,0) -> 0.27124 | C16: =VLOOKUP(A$7,Rates!$A$2:$AB$20,16,0) -> 0.27935 | D16: SCP's rate is | E16: lower by | F16: 0.00811 | G16: per kWh | I16: =B16+0.01 -> 0.28124 | J16: =C16 -> 0.27935 | K16: SCP's rate is | L16: higher by | M16: 0.00189 | N16: per kWh
A17: Winter Off Peak
A18: … up to Baseline | B18: =C18-VLOOKUP($A$7,Rates!$A$23:$H$38,8,0)+VLOOKUP($A$7,Rates!$A$41:$H$56,8,0)+VLOOKUP(MAX('Data & Calculations'!$A$40:$A$46),'Data & Calculations'!$A$40:$D$46,4,0) -> 0.17723 | C18: =VLOOKUP(A$7,Rates!$A$2:$AB$20,8,0) -> 0.18505 | D18: SCP's rate is | E18: lower by | F18: 0.00782 | G18: per kWh | I18: =B18+0.01 -> 0.18723 | J18: =C18 -> 0.18505 | K18: SCP's rate is | L18: higher by | M18: 0.00218 | N18: per kWh
A19: … above Baseline | B19: =C19-VLOOKUP($A$7,Rates!$A$23:$H$38,8,0)+VLOOKUP($A$7,Rates!$A$41:$H$56,8,0)+VLOOKUP(MAX('Data & Calculations'!$A$40:$A$46),'Data & Calculations'!$A$40:$D$46,4,0) -> 0.25724 | C19: =VLOOKUP(A$7,Rates!$A$2:$AB$20,18,0) -> 0.26506 | D19: SCP's rate is | E19: lower by | F19: 0.00782 | G19: per kWh | I19: =B19+0.01 -> 0.26724 | J19: =C19 -> 0.26506 | K19: SCP's rate is | L19: higher by | M19: 0.00218 | N19: per kWh
A21: =Rates!A6 -> E-TOU-B | B21: SCP Rebundled | C21: PG&E Bundled | D21: Result | I21: SCP Rebundled | J21: PG&E Bundled | K21: Result
A22: Summer Peak | B22: =C22-VLOOKUP($A$21,Rates!$A$23:$H$38,3,0)+VLOOKUP($A$21,Rates!$A$41:$H$56,3,0)+VLOOKUP(MAX('Data & Calculations'!$A$40:$A$46),'Data & Calculations'!$A$40:$D$46,4,0) -> 0.36361 | C22: =VLOOKUP(A$21,Rates!$A$2:$AB$20,3,0) -> 0.37522 | D22: SCP's rate is | E22: =IF(B22<C22,"lower by","higher by") -> lower by | F22: =ABS(C22-B22) -> 0.01161 | G22: per kWh | I22: =B22+0.01 -> 0.37361 | J22: =C22 -> 0.37522 | K22: SCP's rate is | L22: =IF(I22<J22,"lower by","higher by") -> lower by | M22: =ABS(J22-I22) -> 0.00161 | N22: per kWh
A23: Summer Off Peak | B23: =C23-VLOOKUP($A$21,Rates!$A$23:$H$38,5,0)+VLOOKUP($A$21,Rates!$A$41:$H$56,5,0)+VLOOKUP(MAX('Data & Calculations'!$A$40:$A$46),'Data & Calculations'!$A$40:$D$46,4,0) -> 0.26261 | C23: =VLOOKUP(A$21,Rates!$A$2:$AB$20,5,0) -> 0.27216 | D23: SCP's rate is | E23: =IF(B23<C23,"lower by","higher by") -> lower by | F23: =ABS(C23-B23) -> 0.00955 | G23: per kWh | I23: =B23+0.01 -> 0.27261 | J23: =C23 -> 0.27216 | K23: SCP's rate is | L23: =IF(I23<J23,"lower by","higher by") -> higher by | M23: =ABS(J23-I23) -> 0.00045 | N23: per kWh
A24: Winter Peak | B24: =C24-VLOOKUP($A$21,Rates!$A$23:$H$38,6,0)+VLOOKUP($A$21,Rates!$A$41:$H$56,6,0)+VLOOKUP(MAX('Data & Calculations'!$A$40:$A$46),'Data & Calculations'!$A$40:$D$46,4,0) -> 0.22888 | C24: =VLOOKUP(A$21,Rates!$A$2:$AB$20,6,0) -> 0.23774 | D24: SCP's rate is | E24: lower by | F24: 0.00886 | G24: per kWh | I24: =B24+0.01 -> 0.23888 | J24: =C24 -> 0.23774 | K24: SCP's rate is | L24: higher by | M24: 0.00114 | N24: per kWh
A25: Winter Off Peak | B25: =C25-VLOOKUP($A$21,Rates!$A$23:$H$38,8,0)+VLOOKUP($A$21,Rates!$A$41:$H$56,8,0)+VLOOKUP(MAX('Data & Calculations'!$A$40:$A$46),'Data & Calculations'!$A$40:$D$46,4,0) -> 0.21045 | C25: =VLOOKUP(A$21,Rates!$A$2:$AB$20,8,0) -> 0.21894 | D25: SCP's rate is | E25: lower by | F25: 0.00849 | G25: per kWh | I25: =B25+0.01 -> 0.22045 | J25: =C25 -> 0.21894 | K25: SCP's rate is | L25: higher by | M25: 0.00151 | N25: per kWh
A27: =Rates!A11 -> EV-A | B27: SCP Rebundled | C27: PG&E Bundled | D27: Result | I27: SCP Rebundled | J27: PG&E Bundled | K27: Result
A28: Summer Peak | B28: =C28-VLOOKUP($A$27,Rates!$A$23:$H$38,3,0)+VLOOKUP($A$27,Rates!$A$41:$H$56,3,0)+VLOOKUP(MAX('Data & Calculations'!$A$40:$A$46),'Data & Calculations'!$A$40:$D$46,4,0) -> 0.46989 | C28: =VLOOKUP(A$27,Rates!$A$2:$AB$20,3,0) -> 0.48889 | D28: SCP's rate is | E28: =IF(B28<C28,"lower by","higher by") -> lower by | F28: =ABS(C28-B28) -> 0.019 | G28: per kWh | I28: =B28+0.01 -> 0.47989 | J28: =C28 -> 0.48889 | K28: SCP's rate is | L28: =IF(I28<J28,"lower by","higher by") -> lower by | M28: =ABS(J28-I28) -> 0.009 | N28: per kWh
A29: Summer Partial Peak | B29: =C29-VLOOKUP($A$27,Rates!$A$23:$H$38,4,0)+VLOOKUP($A$27,Rates!$A$41:$H$56,4,0)+VLOOKUP(MAX('Data & Calculations'!$A$40:$A$46),'Data & Calculations'!$A$40:$D$46,4,0) -> 0.25521 | C29: =VLOOKUP(A$27,Rates!$A$2:$AB$20,4,0) -> 0.26503 | D29: SCP's rate is | E29: =IF(B29<C29,"lower by","higher by") -> lower by | F29: =ABS(C29-B29) -> 0.00982 | G29: per kWh | I29: =B29+0.01 -> 0.26521 | J29: =C29 -> 0.26503 | K29: SCP's rate is | L29: =IF(I29<J29,"lower by","higher by") -> higher by | M29: =ABS(J29-I29) -> 0.00018 | N29: per kWh
A30: Summer Off Peak | B30: =C30-VLOOKUP($A$27,Rates!$A$23:$H$38,5,0)+VLOOKUP($A$27,Rates!$A$41:$H$56,5,0)+VLOOKUP(MAX('Data & Calculations'!$A$40:$A$46),'Data & Calculations'!$A$40:$D$46,4,0) -> 0.1207 | C30: =VLOOKUP(A$27,Rates!$A$2:$AB$20,5,0) -> 0.12559 | D30: SCP's rate is | E30: lower by | F30: 0.00489 | G30: per kWh | I30: =B30+0.01 -> 0.1307 | J30: =C30 -> 0.12559 | K30: SCP's rate is | L30: higher by | M30: 0.00511 | N30: per kWh
A31: Winter Peak | B31: =C31-VLOOKUP($A$27,Rates!$A$23:$H$38,6,0)+VLOOKUP($A$27,Rates!$A$41:$H$56,6,0)+VLOOKUP(MAX('Data & Calculations'!$A$40:$A$46),'Data & Calculations'!$A$40:$D$46,4,0) -> 0.33001 | C31: =VLOOKUP(A$27,Rates!$A$2:$AB$20,6,0) -> 0.34021 | D31: SCP's rate is | E31: lower by | F31: 0.0102 | G31: per kWh | I31: =B31+0.01 -> 0.34001 | J31: =C31 -> 0.34021 | K31: SCP's rate is | L31: lower by | M31: 0.0002 | N31: per kWh
A32: Winter Partial Peak | B32: =C32-VLOOKUP($A$27,Rates!$A$23:$H$38,7,0)+VLOOKUP($A$27,Rates!$A$41:$H$56,7,0)+VLOOKUP(MAX('Data & Calculations'!$A$40:$A$46),'Data & Calculations'!$A$40:$D$46,4,0) -> 0.20667 | C32: =VLOOKUP(A$27,Rates!$A$2:$AB$20,7,0) -> 0.20726 | D32: SCP's rate is | E32: =IF(B32<C32,"lower by","higher by") -> lower by | F32: =ABS(C32-B32) -> 0.00059 | G32: per kWh | I32: =B32+0.01 -> 0.21667 | J32: =C32 -> 0.20726 | K32: SCP's rate is | L32: =IF(I32<J32,"lower by","higher by") -> higher by | M32: =ABS(J32-I32) -> 0.00941 | N32: per kWh
A33: Winter Off Peak | B33: =C33-VLOOKUP($A$27,Rates!$A$23:$H$38,8,0)+VLOOKUP($A$27,Rates!$A$41:$H$56,8,0)+VLOOKUP(MAX('Data & Calculations'!$A$40:$A$46),'Data & Calculations'!$A$40:$D$46,4,0) -> 0.11787 | C33: =VLOOKUP(A$27,Rates!$A$2:$AB$20,8,0) -> 0.12866 | D33: SCP's rate is | E33: lower by | F33: 0.01079 | G33: per kWh | I33: 0.12787 | J33: 0.12866 | K33: SCP's rate is | L33: lower by | M33: 0.00079 | N33: per kWh
A35: =Rates!A12 -> EV-B | B35: SCP Rebundled | C35: PG&E Bundled | D35: Result | I35: SCP Rebundled | J35: PG&E Bundled | K35: Result
A36: Summer Peak | B36: =C36-VLOOKUP($A$35,Rates!$A$23:$H$38,3,0)+VLOOKUP($A$35,Rates!$A$41:$H$56,3,0)+VLOOKUP(MAX('Data & Calculations'!$A$40:$A$46),'Data & Calculations'!$A$40:$D$46,4,0) -> 0.4632 | C36: =VLOOKUP(A$35,Rates!$A$2:$AB$20,3,0) -> 0.4822 | D36: SCP's rate is | E36: =IF(B36<C36,"lower by","higher by") -> lower by | F36: =ABS(C36-B36) -> 0.019 | G36: per kWh | I36: =B36+0.01 -> 0.4732 | J36: =C36 -> 0.4822 | K36: SCP's rate is | L36: =IF(I36<J36,"lower by","higher by") -> lower by | M36: =ABS(J36-I36) -> 0.009 | N36: per kWh
A37: Summer Partial Peak | B37: =C37-VLOOKUP($A$35,Rates!$A$23:$H$38,4,0)+VLOOKUP($A$35,Rates!$A$41:$H$56,4,0)+VLOOKUP(MAX('Data & Calculations'!$A$40:$A$46),'Data & Calculations'!$A$40:$D$46,4,0) -> 0.25186 | C37: =VLOOKUP(A$35,Rates!$A$2:$AB$20,4,0) -> 0.26168 | D37: SCP's rate is | E37: =IF(B37<C37,"lower by","higher by") -> lower by | F37: =ABS(C37-B37) -> 0.00982 | G37: per kWh | I37: =B37+0.01 -> 0.26186 | J37: =C37 -> 0.26168 | K37: SCP's rate is | L37: =IF(I37<J37,"lower by","higher by") -> higher by | M37: =ABS(J37-I37) -> 0.00018 | N37: per kWh
A38: Summer Off Peak | B38: =C38-VLOOKUP($A$35,Rates!$A$23:$H$38,5,0)+VLOOKUP($A$35,Rates!$A$41:$H$56,5,0)+VLOOKUP(MAX('Data & Calculations'!$A$40:$A$46),'Data & Calculations'!$A$40:$D$46,4,0) -> 0.12022 | C38: =VLOOKUP(A$35,Rates!$A$2:$AB$20,5,0) -> 0.12511 | D38: SCP's rate is | E38: lower by | F38: 0.00489 | G38: per kWh | I38: =B38+0.01 -> 0.13022 | J38: =C38 -> 0.12511 | K38: SCP's rate is | L38: higher by | M38: 0.00511 | N38: per kWh
A39: Winter Peak | B39: =C39-VLOOKUP($A$35,Rates!$A$23:$H$38,6,0)+VLOOKUP($A$35,Rates!$A$41:$H$56,6,0)+VLOOKUP(MAX('Data & Calculations'!$A$40:$A$46),'Data & Calculations'!$A$40:$D$46,4,0) -> 0.32288 | C39: =VLOOKUP(A$35,Rates!$A$2:$AB$20,6,0) -> 0.33308 | D39: SCP's rate is | E39: lower by | F39: 0.0102 | G39: per kWh | I39: =B39+0.01 -> 0.33288 | J39: =C39 -> 0.33308 | K39: SCP's rate is | L39: lower by | M39: 0.0002 | N39: per kWh
A40: Winter Partial Peak | B40: =C40-VLOOKUP($A$35,Rates!$A$23:$H$38,7,0)+VLOOKUP($A$35,Rates!$A$41:$H$56,7,0)+VLOOKUP(MAX('Data & Calculations'!$A$40:$A$46),'Data & Calculations'!$A$40:$D$46,4,0) -> 0.20311 | C40: =VLOOKUP(A$35,Rates!$A$2:$AB$20,7,0) -> 0.2037 | D40: SCP's rate is | E40: lower by | F40: 0.00059 | G40: per kWh | I40: =B40+0.01 -> 0.21311 | J40: =C40 -> 0.2037 | K40: SCP's rate is | L40: higher by | M40: 0.00941 | N40: per kWh
A41: Winter Off Peak | B41: =C41-VLOOKUP($A$35,Rates!$A$23:$H$38,8,0)+VLOOKUP($A$35,Rates!$A$41:$H$56,8,0)+VLOOKUP(MAX('Data & Calculations'!$A$40:$A$46),'Data & Calculations'!$A$40:$D$46,4,0) -> 0.11736 | C41: =VLOOKUP(A$35,Rates!$A$2:$AB$20,8,0) -> 0.12815 | D41: SCP's rate is | E41: lower by | F41: 0.01079 | G41: per kWh | I41: 0.12736 | J41: 0.12815 | K41: SCP's rate is | L41: lower by | M41: 0.00079 | N41: per kWh
A43: =Rates!A46 -> E-TOU-C3 | B43: SCP Rebundled | C43: PG&E Bundled | D43: Result | I43: SCP Rebundled | J43: PG&E Bundled | K43: Result
A44: Summer Peak | B44: =C44-VLOOKUP($A$43,Rates!$A$23:$H$38,8,0)+VLOOKUP($A$43,Rates!$A$41:$H$56,8,0)+VLOOKUP(MAX('Data & Calculations'!$A$40:$A$46),'Data & Calculations'!$A$40:$D$46,4,0) -> 0.28693 | C44: =VLOOKUP(A$43,Rates!$A$2:$AB$20,3,0) -> 0.29483 | D44: SCP's rate is | E44: =IF(B44<C44,"lower by","higher by") -> lower by | F44: =ABS(C44-B44) -> 0.0079 | G44: per kWh | I44: =B44+0.01 -> 0.29693 | J44: =C44 -> 0.29483 | K44: SCP's rate is | L44: =IF(I44<J44,"lower by","higher by") -> higher by | M44: =ABS(J44-I44) -> 0.0021 | N44: per kWh
A45: Summer Off Peak | B45: =C45-VLOOKUP($A$43,Rates!$A$23:$H$38,8,0)+VLOOKUP($A$43,Rates!$A$41:$H$56,8,0)+VLOOKUP(MAX('Data & Calculations'!$A$40:$A$46),'Data & Calculations'!$A$40:$D$46,4,0) -> 0.22349 | C45: =VLOOKUP(A$43,Rates!$A$2:$AB$20,5,0) -> 0.23139 | D45: SCP's rate is | E45: =IF(B45<C45,"lower by","higher by") -> lower by | F45: =ABS(C45-B45) -> 0.0079 | G45: per kWh | I45: =B45+0.01 -> 0.23349 | J45: =C45 -> 0.23139 | K45: SCP's rate is | L45: =IF(I45<J45,"lower by","higher by") -> higher by | M45: =ABS(J45-I45) -> 0.0021 | N45: per kWh
A46: Winter Peak | B46: =C46-VLOOKUP($A$43,Rates!$A$23:$H$38,8,0)+VLOOKUP($A$43,Rates!$A$41:$H$56,8,0)+VLOOKUP(MAX('Data & Calculations'!$A$40:$A$46),'Data & Calculations'!$A$40:$D$46,4,0) -> 0.19984 | C46: =VLOOKUP(A$43,Rates!$A$2:$AB$20,6,0) -> 0.20774 | D46: SCP's rate is | E46: lower by | F46: 0.0079 | G46: per kWh | I46: =B46+0.01 -> 0.20984 | J46: =C46 -> 0.20774 | K46: SCP's rate is | L46: higher by | M46: 0.0021 | N46: per kWh
A47: Winter Off Peak | B47: =C47-VLOOKUP($A$43,Rates!$A$23:$H$38,8,0)+VLOOKUP($A$43,Rates!$A$41:$H$56,8,0)+VLOOKUP(MAX('Data & Calculations'!$A$40:$A$46),'Data & Calculations'!$A$40:$D$46,4,0) -> 0.18251 | C47: =VLOOKUP(A$43,Rates!$A$2:$AB$20,8,0) -> 0.19041 | D47: SCP's rate is | E47: lower by | F47: 0.0079 | G47: per kWh | I47: =B47+0.01 -> 0.19251 | J47: =C47 -> 0.19041 | K47: SCP's rate is | L47: higher by | M47: 0.0021 | N47: per kWh
A48: ----- Closed to New Customers (ignores tiering, which is competitively irrelevant) -----
A49: =Rates!A15 -> E-6 (Time-of-Use) | B49: SCP Rebundled | C49: PG&E Bundled | D49: Result | I49: SCP Rebundled | J49: PG&E Bundled | K49: Result
A50: Summer Peak | B50: =C50-VLOOKUP($A$49,Rates!$A$23:$H$38,3,0)+VLOOKUP($A$49,Rates!$A$41:$H$56,3,0)+VLOOKUP(MAX('Data & Calculations'!$A$40:$A$46),'Data & Calculations'!$A$40:$D$46,4,0) -> 0.36069 | C50: =VLOOKUP(A$49,Rates!$A$2:$AB$20,3,0) -> 0.37729 | D50: SCP's rate is | E50: =IF(B50<C50,"lower by","higher by") -> lower by | F50: =ABS(C50-B50) -> 0.0166 | G50: per kWh | I50: =B50+0.01 -> 0.37069 | J50: =C50 -> 0.37729 | K50: SCP's rate is | L50: =IF(I50<J50,"lower by","higher by") -> lower by | M50: =ABS(J50-I50) -> 0.0066 | N50: per kWh
A51: Summer Partial Peak | B51: =C51-VLOOKUP($A$49,Rates!$A$23:$H$38,4,0)+VLOOKUP($A$49,Rates!$A$41:$H$56,4,0)+VLOOKUP(MAX('Data & Calculations'!$A$40:$A$46),'Data & Calculations'!$A$40:$D$46,4,0) -> 0.25205 | C51: =VLOOKUP(A$49,Rates!$A$2:$AB$20,4,0) -> 0.26202 | D51: SCP's rate is | E51: =IF(B51<C51,"lower by","higher by") -> lower by | F51: =ABS(C51-B51) -> 0.00997 | G51: per kWh | I51: =B51+0.01 -> 0.26205 | J51: =C51 -> 0.26202 | K51: SCP's rate is | L51: =IF(I51<J51,"lower by","higher by") -> higher by | M51: =ABS(J51-I51) -> 3e-05 | N51: per kWh
A52: Summer Off Peak | B52: =C52-VLOOKUP($A$49,Rates!$A$23:$H$38,5,0)+VLOOKUP($A$49,Rates!$A$41:$H$56,5,0)+VLOOKUP(MAX('Data & Calculations'!$A$40:$A$46),'Data & Calculations'!$A$40:$D$46,4,0) -> 0.17859 | C52: =VLOOKUP(A$49,Rates!$A$2:$AB$20,5,0) -> 0.18524 | D52: SCP's rate is | E52: lower by | F52: 0.00665 | G52: per kWh | I52: =B52+0.01 -> 0.18859 | J52: =C52 -> 0.18524 | K52: SCP's rate is | L52: higher by | M52: 0.00335 | N52: per kWh
A53: Winter Partial Peak | B53: =C53-VLOOKUP($A$49,Rates!$A$23:$H$38,7,0)+VLOOKUP($A$49,Rates!$A$41:$H$56,7,0)+VLOOKUP(MAX('Data & Calculations'!$A$40:$A$46),'Data & Calculations'!$A$40:$D$46,4,0) -> 0.19834 | C53: =VLOOKUP(A$49,Rates!$A$2:$AB$20,7,0) -> 0.20641 | D53: SCP's rate is | E53: lower by | F53: 0.00807 | G53: per kWh | I53: =B53+0.01 -> 0.20834 | J53: =C53 -> 0.20641 | K53: SCP's rate is | L53: higher by | M53: 0.00193 | N53: per kWh
A54: Winter Off Peak | B54: =C54-VLOOKUP($A$49,Rates!$A$23:$H$38,8,0)+VLOOKUP($A$49,Rates!$A$41:$H$56,8,0)+VLOOKUP(MAX('Data & Calculations'!$A$40:$A$46),'Data & Calculations'!$A$40:$D$46,4,0) -> 0.18233 | C54: =VLOOKUP(A$49,Rates!$A$2:$AB$20,8,0) -> 0.18958 | D54: SCP's rate is | E54: lower by | F54: 0.00725 | G54: per kWh | I54: 0.19233 | J54: 0.18958 | K54: SCP's rate is | L54: higher by | M54: 0.00275 | N54: per kWh
A56: Note: Rebundled rates assume the most current PCIA vintage. Other vintages may result in small adjustments to the above rates.

Sheet Rates (hidden)
A1: Bundled Rate
A2: Tier 1 | B2: All Usage | C2: Summer Peak | D2: Summer Partial Peak | E2: Summer Off Peak | F2: Winter Peak | G2: Winter Partial Peak | H2: Winter Off Peak | I2: Meter Charge | J2: Minimum Bill | K2: Tier 2 | L2: All Usage | M2: S Pk | N2: S Pt | O2: S Off | P2: W Pk | Q2: W Pt | R2: W Off | T2: High Usage | U2: All Usage | V2: S Pk | W2: S Pt | X2: S Off | Y2: W Pk | Z2: W Pt | AA2: W Off | AC2: Baseline
A3: Basic Residential (E-1) | B3: 0.21775 | C3: FALSE | D3: FALSE | E3: FALSE | F3: FALSE | G3: FALSE | H3: FALSE | J3: 0.32854 | K3: =A3 -> Basic Residential (E-1) | L3: 0.27402 | M3: FALSE | N3: FALSE | O3: FALSE | P3: FALSE | Q3: FALSE | R3: FALSE | T3: =K3 -> Basic Residential (E-1) | U3: 0.48009 | V3: FALSE | W3: FALSE | X3: FALSE | Y3: FALSE | Z3: FALSE | AA3: FALSE | AC3: Standard
A4: Basic CARE Res. (EL-1) | B4: 0.13947 | C4: FALSE | D4: FALSE | E4: FALSE | F4: FALSE | G4: FALSE | H4: FALSE | J4: 0.16427 | K4: =A4 -> Basic CARE Res. (EL-1) | L4: 0.17528 | M4: FALSE | N4: FALSE | O4: FALSE | P4: FALSE | Q4: FALSE | R4: FALSE | T4: Basic CARE Res. (EL-1) | U4: 0.30709 | V4: FALSE | W4: FALSE | X4: FALSE | Y4: FALSE | Z4: FALSE | AA4: FALSE | AC4: Standard
A5: E-TOU-A | B5: =L5 -> FALSE | C5: =M5+$D$19 -> 0.31732 | D5: =N5 -> FALSE | E5: =O5+D19 -> 0.24174 | F5: =P5+D19 -> 0.19934 | G5: FALSE | H5: =R5+D19 -> 0.18505 | J5: =J3 -> 0.32854 | K5: =A5 -> E-TOU-A | L5: FALSE | M5: 0.39733 | N5: FALSE | O5: 0.32175 | P5: 0.27935 | Q5: FALSE | R5: 0.26506 | T5: E-TOU-A | U5: FALSE | V5: 0.39733 | W5: FALSE | X5: 0.32175 | Y5: 0.27935 | Z5: FALSE | AA5: 0.26506 | AC5: TOU
A6: E-TOU-B | B6: =L6 -> FALSE | C6: =M6 -> 0.37522 | D6: FALSE | E6: 0.27216 | F6: 0.23774 | G6: FALSE | H6: 0.21894 | J6: =J3 -> 0.32854 | K6: E-TOU-B | L6: FALSE | M6: 0.37522 | N6: FALSE | O6: 0.27216 | P6: 0.23774 | Q6: FALSE | R6: 0.21894 | T6: E-TOU-B | U6: FALSE | V6: 0.37522 | W6: FALSE | X6: 0.27216 | Y6: 0.23774 | Z6: FALSE | AA6: 0.21894 | AC6: TOU
A7: E-TOU-C3 | B7: FALSE | C7: =M7+$D$19 -> 0.29483 | D7: FALSE | E7: =O7+$D$19 -> 0.23139 | F7: =P7+$D$19 -> 0.20774 | G7: FALSE | H7: =R7+$D$19 -> 0.19041 | J7: =J3 -> 0.32854 | K7: E-TOU-C3 | L7: FALSE | M7: 0.37484 | N7: FALSE | O7: 0.3114 | P7: 0.28775 | Q7: FALSE | R7: 0.27042 | T7: E-TOU-C3 | U7: =L7 -> FALSE | V7: 0.37484 | W7: FALSE | X7: 0.3114 | Y7: 0.28775 | Z7: FALSE | AA7: 0.27042 | AC7: TOU
A8: EL-TOU-A (CARE) | B8: =L8 -> FALSE | C8: =M8+D20 -> 0.20371 | D8: FALSE | E8: =O8+D20 -> 0.1561 | F8: =P8+D20 -> 0.12938 | G8: FALSE | H8: =R8+D20 -> 0.12038 | J8: =J4 -> 0.16427 | K8: EL-TOU-A (CARE) | L8: FALSE | M8: 0.24348 | N8: FALSE | O8: 0.19587 | P8: 0.16915 | Q8: FALSE | R8: 0.16015 | T8: EL-TOU-A (CARE) | U8: FALSE | V8: 0.24348 | W8: FALSE | X8: 0.19587 | Y8: 0.16915 | Z8: FALSE | AA8: 0.16015 | AC8: TOU
A9: EL-TOU-B (CARE) | B9: FALSE | C9: 0.23133 | D9: FALSE | E9: 0.16641 | F9: 0.14472 | G9: FALSE | H9: 0.13288 | J9: =J4 -> 0.16427 | K9: EL-TOU-B (CARE) | L9: FALSE | M9: 0.23133 | N9: FALSE | O9: 0.16641 | P9: 0.14472 | Q9: FALSE | R9: 0.13288 | T9: EL-TOU-B (CARE) | U9: FALSE | V9: 0.23133 | W9: FALSE | X9: 0.16641 | Y9: 0.14472 | Z9: FALSE | AA9: 0.13288 | AC9: TOU
A10: EL-TOU-C3 (CARE) | B10: FALSE | C10: =M10+$D$21 -> 0.18664 | D10: FALSE | E10: =O10+$D$21 -> 0.14661 | F10: =P10+$D$21 -> 0.13169 | G10: FALSE | H10: =R10+$D$21 -> 0.12075 | J10: =J4 -> 0.16427 | K10: EL-TOU-C3 (CARE) | L10: FALSE | M10: 0.23712 | N10: FALSE | O10: 0.19709 | P10: 0.18217 | Q10: FALSE | R10: 0.17123 | T10: EL-TOU-C3 (CARE) | U10: =L10 -> FALSE | V10: 0.23712 | W10: FALSE | X10: 0.19709 | Y10: 0.18217 | Z10: FALSE | AA10: 0.17123 | AC10: TOU
A11: EV-A | B11: FALSE | C11: 0.48889 | D11: 0.26503 | E11: 0.12559 | F11: 0.34021 | G11: 0.20726 | H11: 0.12866 | J11: =J3 -> 0.32854 | K11: EV-A | L11: FALSE | M11: 0.48889 | N11: 0.26503 | O11: 0.12559 | P11: 0.34021 | Q11: 0.20726 | R11: 0.12866 | T11: EV-A | U11: FALSE | V11: 0.48889 | W11: 0.26503 | X11: 0.12559 | Y11: 0.34021 | Z11: 0.20726 | AA11: 0.12866 | AC11: Standard
A12: EV-B | B12: FALSE | C12: 0.4822 | D12: 0.26168 | E12: 0.12511 | F12: 0.33308 | G12: 0.2037 | H12: 0.12815 | I12: 0.04928 | J12: =J3 -> 0.32854 | K12: EV-B | L12: FALSE | M12: 0.4822 | N12: 0.26168 | O12: 0.12511 | P12: 0.33308 | Q12: 0.2037 | R12: 0.12815 | T12: EV-B | U12: FALSE | V12: 0.4822 | W12: 0.26168 | X12: 0.12511 | Y12: 0.33308 | Z12: 0.2037 | AA12: 0.12815 | AC12: Standard
A14: ="--- Closed Rates ---" -> --- Closed Rates --- | K14: =A14 -> --- Closed Rates --- | T14: =K14 -> --- Closed Rates ---
A15: E-6 (Time-of-Use) | B15: FALSE | C15: 0.37729 | D15: 0.26202 | E15: 0.18524 | F15: FALSE | G15: 0.20641 | H15: 0.18958 | I15: 0.25298 | J15: =J3 -> 0.32854 | K15: E-6 (Time-of-Use) | L15: FALSE | M15: 0.4573 | N15: 0.34203 | O15: 0.26525 | P15: FALSE | Q15: 0.28642 | R15: 0.26959 | T15: =K15 -> E-6 (Time-of-Use) | U15: FALSE | V15: =M15 -> 0.4573 | W15: =N15 -> 0.34203 | X15: 0.26525 | Y15: FALSE | Z15: 0.28642 | AA15: 0.26959 | AC15: Standard
A16: EL-6 (CARE, Time-of-Use) | B16: FALSE | C16: 0.25627 | D16: 0.17177 | E16: 0.11549 | F16: FALSE | G16: 0.13101 | H16: 0.11866 | I16: 0.20238 | J16: =J4 -> 0.16427 | K16: EL-6 (CARE, Time-of-Use) | L16: FALSE | M16: 0.29604 | N16: 0.21154 | O16: 0.15526 | P16: FALSE | Q16: 0.17078 | R16: 0.15843 | T16: =K16 -> EL-6 (CARE, Time-of-Use) | U16: FALSE | V16: =M16 -> 0.29604 | W16: 0.21154 | X16: 0.15526 | Y16: FALSE | Z16: 0.17078 | AA16: 0.15843 | AC16: Standard
A19: Baseline Credit (E-TOU only) | D19: -0.08001
A20: Baseline Credit (EL-TOU only) | D20: -0.03977
A21: Baseline Credit (EL-TOU-C3 only) | D21: -0.05048
A23: PG&E Generation Rate | B23: All Usage | C23: =C2 -> Summer Peak | D23: Summer Partial Peak | E23: Summer Off Peak | F23: Winter Peak | G23: Winter Partial Peak | H23: Winter Off Peak
A24: =A3 -> Basic Residential (E-1) | B24: 0.11194 | C24: FALSE | D24: FALSE | E24: FALSE | F24: FALSE | G24: FALSE | H24: FALSE
A25: =A4 -> Basic CARE Res. (EL-1) | B25: =B24 -> 0.11194 | C25: FALSE | D25: FALSE | E25: FALSE | F25: FALSE | G25: FALSE | H25: FALSE
A26: =A5 -> E-TOU-A | B26: FALSE | C26: 0.19465 | D26: FALSE | E26: 0.11907 | F26: 0.1073 | G26: FALSE | H26: 0.09301
A27: =A6 -> E-TOU-B | B27: FALSE | C27: 0.21652 | D27: FALSE | E27: 0.11346 | F27: 0.10968 | G27: FALSE | H27: 0.09088
A28: E-TOU-C3 | B28: FALSE | C28: 0.17059 | D28: FALSE | E28: 0.10715 | F28: 0.11413 | G28: FALSE | H28: 0.0968
A29: =A8 -> EL-TOU-A (CARE) | B29: FALSE | C29: =C26 -> 0.19465 | D29: FALSE | E29: =E26 -> 0.11907 | F29: 0.1073 | G29: FALSE | H29: =H26 -> 0.09301
A30: =A9 -> EL-TOU-B (CARE) | B30: FALSE | C30: =C27 -> 0.21652 | D30: FALSE | E30: 0.11346 | F30: 0.10968 | G30: FALSE | H30: =H27 -> 0.09088
A31: EL-TOU-C3 (CARE) | B31: FALSE | C31: =C28 -> 0.17059 | D31: FALSE | E31: 0.10715 | F31: 0.11413 | G31: FALSE | H31: =H28 -> 0.0968
A32: =A11 -> EV-A | B32: FALSE | C32: 0.25622 | D32: 0.12348 | E32: 0.06205 | F32: 0.09575 | G32: 0.05982 | H32: 0.06427
A33: =A12 -> EV-B | B33: FALSE | C33: =C32 -> 0.25622 | D33: =D32 -> 0.12348 | E33: 0.06205 | F33: 0.09575 | G33: 0.05982 | H33: 0.06427
A35: =A14 -> --- Closed Rates ---
A36: =A15 -> E-6 (Time-of-Use) | B36: FALSE | C36: 0.24687 | D36: 0.12969 | E36: 0.08185 | F36: FALSE | G36: 0.10841 | H36: 0.09526
A37: =A16 -> EL-6 (CARE, Time-of-Use) | B37: FALSE | C37: =C36 -> 0.24687 | D37: =D36 -> 0.12969 | E37: 0.08185 | F37: FALSE | G37: 0.10841 | H37: 0.09526
A41: SCP Generation Rate | B41: All Usage | C41: =C2 -> Summer Peak | D41: =D2 -> Summer Partial Peak | E41: Summer Off Peak | F41: Winter Peak | G41: Winter Partial Peak | H41: Winter Off Peak
A42: =A3 -> Basic Residential (E-1) | B42: 0.06948 | C42: FALSE | D42: FALSE | E42: FALSE | F42: FALSE | G42: FALSE | H42: FALSE
A43: =A4 -> Basic CARE Res. (EL-1) | B43: =B42 -> 0.06948 | C43: FALSE | D43: FALSE | E43: FALSE | F43: FALSE | G43: FALSE | H43: FALSE
A44: =A5 -> E-TOU-A | B44: FALSE | C44: 0.15013 | D44: FALSE | E44: 0.07607 | F44: 0.06515 | G44: FALSE | H44: 0.05115
A45: =A6 -> E-TOU-B | B45: FALSE | C45: 0.17087 | D45: FALSE | E45: 0.06987 | F45: 0.06678 | G45: FALSE | H45: 0.04835
A46: E-TOU-C3 | B46: FALSE | C46: 0.12656 | D46: FALSE | E46: 0.06439 | F46: 0.07184 | G46: FALSE | H46: 0.05486
A47: =A8 -> EL-TOU-A (CARE) | B47: FALSE | C47: =C44 -> 0.15013 | D47: FALSE | E47: =E44 -> 0.07607 | F47: =F44 -> 0.06515 | G47: FALSE | H47: =H44 -> 0.05115
A48: =A9 -> EL-TOU-B (CARE) | B48: FALSE | C48: =C45 -> 0.17087 | D48: FALSE | E48: =E45 -> 0.06987 | F48: =F45 -> 0.06678 | G48: FALSE | H48: =H45 -> 0.04835
A49: EL-TOU-C3 (CARE) | B49: FALSE | C49: 0.12656 | D49: FALSE | E49: 0.06439 | F49: 0.07184 | G49: FALSE | H49: 0.05486
A50: =A11 -> EV-A | B50: FALSE | C50: 0.20318 | D50: 0.07962 | E50: 0.02312 | F50: 0.05151 | G50: 0.02519 | H50: 0.01944
A51: =A12 -> EV-B | B51: FALSE | C51: =C50 -> 0.20318 | D51: =D50 -> 0.07962 | E51: =E50 -> 0.02312 | F51: =F50 -> 0.05151 | G51: =G50 -> 0.02519 | H51: =H50 -> 0.01944
A53: =A14 -> --- Closed Rates ---
A54: =A15 -> E-6 (Time-of-Use) | B54: FALSE | C54: 0.19623 | D54: 0.08568 | E54: 0.04116 | F54: FALSE | G54: 0.0663 | H54: 0.05397
A55: =A16 -> EL-6 (CARE, Time-of-Use) | B55: FALSE | C55: =C54 -> 0.19623 | D55: =D54 -> 0.08568 | E55: =E54 -> 0.04116 | F55: =F54 -> FALSE | G55: =G54 -> 0.0663 | H55: =H54 -> 0.05397

Sheet Data & Calculations (hidden)
A1: Determined Bundled Rate (automated)
A2: =Calculator!D9 -> Basic Residential (E-1) | B2: =Rates!B2 -> All Usage | C2: =Rates!C2 -> Summer Peak | D2: =Rates!D2 -> Summer Partial Peak | E2: =Rates!E2 -> Summer Off Peak | F2: =Rates!F2 -> Winter Peak | G2: =Rates!G2 -> Winter Partial Peak | H2: =Rates!H2 -> Winter Off Peak | I2: =Rates!I2 -> Meter Charge | J2: =Rates!J2 -> Minimum Bill
A3: Tier 1 | B3: =VLOOKUP(Calculator!$D$9,Rates!$A$3:$AB$18,MATCH(B$2,Rates!$A$2:$J$2,0),FALSE) -> 0.21775 | C3: =VLOOKUP(Calculator!$D$9,Rates!$A$3:$AB$18,MATCH(C$2,Rates!$A$2:$J$2,0),FALSE) -> FALSE | D3: =VLOOKUP(Calculator!$D$9,Rates!$A$3:$AB$18,MATCH(D$2,Rates!$A$2:$J$2,0),FALSE) -> FALSE | E3: =VLOOKUP(Calculator!$D$9,Rates!$A$3:$AB$18,MATCH(E$2,Rates!$A$2:$J$2,0),FALSE) -> FALSE | F3: =VLOOKUP(Calculator!$D$9,Rates!$A$3:$AB$18,MATCH(F$2,Rates!$A$2:$J$2,0),FALSE) -> FALSE | G3: =VLOOKUP(Calculator!$D$9,Rates!$A$3:$AB$18,MATCH(G$2,Rates!$A$2:$J$2,0),FALSE) -> FALSE | H3: =VLOOKUP(Calculator!$D$9,Rates!$A$3:$AB$18,MATCH(H$2,Rates!$A$2:$J$2,0),FALSE) -> FALSE | I3: =IFERROR(VLOOKUP(Calculator!$D$9,Rates!$A$3:$AB$18,MATCH(I$2,Rates!$A$2:$J$2,0),FALSE),0) -> 0 | J3: =IFERROR(VLOOKUP(Calculator!$D$9,Rates!$A$3:$AB$18,MATCH(J2,Rates!$A$2:$J$2,0),FALSE),0) -> 0.32854
A4: Tier 2 | B4: =VLOOKUP(Calculator!$D$9,Rates!$A$3:$AB$18,MATCH(B$2,Rates!$A$2:$J$2,0)+10,FALSE) -> 0.27402 | C4: =VLOOKUP(Calculator!$D$9,Rates!$A$3:$AB$18,MATCH(C$2,Rates!$A$2:$J$2,0)+10,FALSE) -> FALSE | D4: =VLOOKUP(Calculator!$D$9,Rates!$A$3:$AB$18,MATCH(D$2,Rates!$A$2:$J$2,0)+10,FALSE) -> FALSE | E4: =VLOOKUP(Calculator!$D$9,Rates!$A$3:$AB$18,MATCH(E$2,Rates!$A$2:$J$2,0)+10,FALSE) -> FALSE | F4: =VLOOKUP(Calculator!$D$9,Rates!$A$3:$AB$18,MATCH(F$2,Rates!$A$2:$J$2,0)+10,FALSE) -> FALSE | G4: =VLOOKUP(Calculator!$D$9,Rates!$A$3:$AB$18,MATCH(G$2,Rates!$A$2:$J$2,0)+10,FALSE) -> FALSE | H4: =VLOOKUP(Calculator!$D$9,Rates!$A$3:$AB$18,MATCH(H$2,Rates!$A$2:$J$2,0)+10,FALSE) -> FALSE
A5: Tier 3 | B5: =VLOOKUP(Calculator!$D$9,Rates!$A$3:$AB$18,MATCH(B$2,Rates!$A$2:$J$2,0)+19,FALSE) -> 0.48009 | C5: =VLOOKUP(Calculator!$D$9,Rates!$A$3:$AB$18,MATCH(C$2,Rates!$A$2:$J$2,0)+19,FALSE) -> FALSE | D5: =VLOOKUP(Calculator!$D$9,Rates!$A$3:$AB$18,MATCH(D$2,Rates!$A$2:$J$2,0)+19,FALSE) -> FALSE | E5: =VLOOKUP(Calculator!$D$9,Rates!$A$3:$AB$18,MATCH(E$2,Rates!$A$2:$J$2,0)+19,FALSE) -> FALSE | F5: =VLOOKUP(Calculator!$D$9,Rates!$A$3:$AB$18,MATCH(F$2,Rates!$A$2:$J$2,0)+19,FALSE) -> FALSE | G5: =VLOOKUP(Calculator!$D$9,Rates!$A$3:$AB$18,MATCH(G$2,Rates!$A$2:$J$2,0)+19,FALSE) -> FALSE | H5: =VLOOKUP(Calculator!$D$9,Rates!$A$3:$AB$18,MATCH(H$2,Rates!$A$2:$J$2,0)+19,FALSE) -> FALSE
A7: Determined Bundled Charges (automated)
A8: =A2 -> Basic Residential (E-1) | B8: All Usage | C8: Summer Peak | D8: Summer Partial Peak | E8: Summer Off Peak | F8: Winter Peak | G8: Winter Partial Peak | H8: Winter Off Peak | I8: Meter Charge | J8: Total
A9: =A3 -> Tier 1 | B9: =B3*C65 ->  | I9: =I3*Calculator!D15 -> 0
A10: =A4 -> Tier 2
A11: =A5 -> Tier 3
A12: Total | B12: =SUM(B9:B11) ->  | I12: =IFERROR(SUM(I9:I11),0) -> 0 | J12: =SUM(B12:I12) -> 
A14: Determined Generation Rates (automated)
A15: =A2 -> Basic Residential (E-1) | B15: All Usage | C15: Summer Peak | D15: Summer Partial Peak | E15: Summer Off Peak | F15: Winter Peak | G15: Winter Partial Peak | H15: Winter Off Peak | I15: NEM Bonus
A16: PGE | B16: =VLOOKUP(Calculator!$D$9,Rates!$A$24:$H$39,MATCH(B$15,Rates!$A$2:$J$2,0),FALSE) -> 0.11194 | C16: =VLOOKUP(Calculator!$D$9,Rates!$A$24:$H$39,MATCH(C$15,Rates!$A$2:$J$2,0),FALSE) -> FALSE | D16: =VLOOKUP(Calculator!$D$9,Rates!$A$24:$H$39,MATCH(D$15,Rates!$A$2:$J$2,0),FALSE) -> FALSE | E16: =VLOOKUP(Calculator!$D$9,Rates!$A$24:$H$39,MATCH(E$15,Rates!$A$2:$J$2,0),FALSE) -> FALSE | F16: =VLOOKUP(Calculator!$D$9,Rates!$A$24:$H$39,MATCH(F$15,Rates!$A$2:$J$2,0),FALSE) -> FALSE | G16: =VLOOKUP(Calculator!$D$9,Rates!$A$24:$H$39,MATCH(G$15,Rates!$A$2:$J$2,0),FALSE) -> FALSE | H16: =VLOOKUP(Calculator!$D$9,Rates!$A$24:$H$39,MATCH(H$15,Rates!$A$2:$J$2,0),FALSE) -> FALSE
A17: SCP | B17: =VLOOKUP(Calculator!$D$9,Rates!$A$42:$H$57,MATCH(B$15,Rates!$A$2:$J$2,0),FALSE) -> 0.06948 | C17: =VLOOKUP(Calculator!$D$9,Rates!$A$42:$H$57,MATCH(C$15,Rates!$A$2:$J$2,0),FALSE) -> FALSE | D17: =VLOOKUP(Calculator!$D$9,Rates!$A$42:$H$57,MATCH(D$15,Rates!$A$2:$J$2,0),FALSE) -> FALSE | E17: =VLOOKUP(Calculator!$D$9,Rates!$A$42:$H$57,MATCH(E$15,Rates!$A$2:$J$2,0),FALSE) -> FALSE | F17: =VLOOKUP(Calculator!$D$9,Rates!$A$42:$H$57,MATCH(F$15,Rates!$A$2:$J$2,0),FALSE) -> FALSE | G17: =VLOOKUP(Calculator!$D$9,Rates!$A$42:$H$57,MATCH(G$15,Rates!$A$2:$J$2,0),FALSE) -> FALSE | H17: =VLOOKUP(Calculator!$D$9,Rates!$A$42:$H$57,MATCH(H$15,Rates!$A$2:$J$2,0),FALSE) -> FALSE | I17: =B70 -> 0.01
A19: Determined Generation Charges (automated)
A20: =A2 -> Basic Residential (E-1) | B20: All Usage | C20: Summer Peak | D20: Summer Partial Peak | E20: Summer Off Peak | F20: Winter Peak | G20: Winter Partial Peak | H20: Winter Off Peak | I20: NEM Bonus | J20: Total
A21: PGE | B21: =B16*B$59 -> 0 | C21: 0 | D21: 0 | E21: 0 | F21: 0 | G21: 0 | H21: 0 | J21: =SUM(B21:H21) -> 0
A22: SCP | B22: 0 | C22: 0 | D22: 0 | E22: 0 | F22: 0 | G22: 0 | H22: 0 | I22: =SUMIF(B59:H59,"<0")*I17 -> 0 | J22: =SUM(B22:I22) -> 0
A24: Determined Delivery Charges (automated)
A25: =A2 -> Basic Residential (E-1) | B25: All Usage | C25: Summer Peak | D25: Summer Partial Peak | E25: Summer Off Peak | F25: Winter Peak | G25: Winter Partial Peak | H25: Winter Off Peak | I25: Meter Charge | J25: Total
A26: PGE | B26: =B$12-B21 ->  | C26: =C$12-C21 ->  | I26: =I9-I21 -> 0 | J26: =SUM(B26:I26) -> 
A27: SCP | C27: =C$12-C22 ->  | I27: =I26 -> 0
A29: Baseline Quantities (annual update)
A30: Standard | B30: Summer | C30: Winter | F30: TOUA/C | G30: Summer | H30: Winter
A31: TB | B31: 7 | C31: 8.5 | F31: PB | G31: 15.3 | H31: 11.9
A32: XB | B32: 10.1 | C32: 10.9 | F32: TB | G32: 7 | H32: 8.2
A33: PB | B33: 13.8 | C33: 12.3 | F33: XB | G33: 10.5 | H33: 10.6
B34: Summer | C34: Winter | G34: Summer | H34: Winter
A35: TH | B35: 8.3 | C35: 14.9 | F35: PH | G35: 17.4 | H35: 27.8
A36: XH | B36: 9.3 | C36: 16.7 | F36: TH | G36: 8.2 | H36: 14.1
A37: PH | B37: 16.4 | C37: 29.6 | F37: XH | G37: 10.5 | H37: 16.7
A39: Fees (annual update) | B39: PCIA | C39: FF | D39: Total
A40: 2013 | B40: 0.03388 | C40: 0.00058 | D40: =SUM(B40:C40) -> 0.03446
A41: 2014 | B41: 0.03354 | C41: 0.00058 | D41: =SUM(B41:C41) -> 0.03412
A42: 2015 | B42: 0.03338 | C42: 0.00059 | D42: 0.03397
A43: 2016 | B43: 0.03345 | C43: 0.00059 | D43: 0.03404
A44: 2017 | B44: 0.03346 | C44: 0.00058 | D44: 0.03404
A45: 2018 | B45: 0.03346 | C45: 0.00058 | D45: =SUM(B45:C45) -> 0.03404
A48: Extra Fee Calculations (automated - DO NOT TOUCH; Vintage calculation needs to be updated periodically though)
A49: Vintage: | B49: =Calculator!G16 -> 2014
A50: Determined Fees: | B50: =VLOOKUP(B49,A40:D44,4) -> 0.03412 | C50: Franchise Only: | D50: =VLOOKUP(B49,A40:D44,3) -> 0.00058
A52: Delivery Rates (auto updates - DO NOT TOUCH)
A53: =A2 -> Basic Residential (E-1) | B53: All Usage | C53: Summer Peak | D53: Summer Partial Peak | E53: Summer Off Peak | F53: Winter Peak | G53: Winter Partial Peak | H53: Winter Off Peak | I53: Meter Charge
A54: Tier 1 | B54: =B3-B$16 -> 0.10581 | C54: 0 | D54: 0 | E54: 0 | F54: 0 | G54: 0 | H54: 0 | I54: 0
A55: Tier 2 | B55: 0.16208 | C55: 0 | D55: 0 | E55: 0 | F55: 0 | G55: 0 | H55: 0 | I55: 0
A56: High Usage | B56: 0.36815 | C56: 0 | D56: 0 | E56: 0 | F56: 0 | G56: 0 | H56: 0 | I56: 0
A58: Total kWh (automated) | B58: All Usage | C58: S Pk | D58: S Pt | E58: S Off | F58: W Pk | G58: W Pt | H58: W Off | I58: Total
A59: All Usage | B59: =IF(B3=FALSE,0,Calculator!D6) -> 0 | C59: =IF(C3=FALSE,0,Calculator!D10) -> 0 | D59: =IF(D3=FALSE,0,Calculator!D11) -> 0 | E59: =IF(E3=FALSE,0,Calculator!D12) -> 0 | F59: =IF(F3=FALSE,0,Calculator!G10) -> 0 | G59: =IF(G3=FALSE,0,Calculator!G11) -> 0 | H59: =IF(H3=FALSE,0,Calculator!G12) -> 0 | I59: =SUM(B59:H59) -> 0
A60: Pct of Total | B60: =B59/$I$59 ->  | C60: =C59/$I$59 -> 
A62: Tiering Calculations (auto updates - DO NOT TOUCH)
A63: Calculated Baseline: | B63: =CONCATENATE(Calculator!G15,IF(Calculator!D16="Gas","B","H")) -> XB | C63: Season: | D63: =IF(Calculator!F6="Nov-Apr","Winter","Summer") -> Summer | E63: Baseline Variant: | G63: =VLOOKUP(A2,Rates!A3:AC17,29,0) -> Standard
A64: Baseline Quantity | B64: =IF(G63="Standard",IF(D63="Summer",VLOOKUP(B63,A30:C37,2),VLOOKUP(B63,A30:C37,3)),IF(D63="Summer",VLOOKUP(B63,F30:H37,2),VLOOKUP(B63,F30:H37,3))) -> 8.3 | C64: =B58 -> All Usage | D64: S Pk | E64: S Pt | F64: S Off | G64: W Pk | H64: W Pt | I64: W Off | J64: Total Tier Allocation
A65: Tier 1 | B65: =B64*Calculator!D15 -> 257.3 | C65: =B$60*$J65 ->  | J65: =MIN(B65,I59) -> 0
A66: Tier 2 | B66: =B65*3 -> 771.9 | C66: =B$60*$J66 ->  | J66: =MIN(B66,I59-J65) -> 0
A67: High Usage Rate | B67: all above | J67: =MAX(0,I59-J65-J66) -> 0
A69: Misc Rates
A70: NEM Surplus | B70: 0.01
A71: EverGreen | B71: 0.025
A72: Minimum Bill | B72: =J3*Calculator!D15 -> 10.18474 | C72: (automated)
A74: Totals (automated)
B75: PG&E | C75: SCP
A76: Delivery | B76: =MAX(B72,J26) ->  | C76: =B76 -> 
A77: Generation | B77: =J21 -> 0 | C77: =J22 -> 0
A78: PCIA/FF | B78: 0 | C78: =B50*I59 -> 0
A79: Energy Comission Tax | B79: =0.00029*Calculator!D6 -> 0 | C79: =0.00029*Calculator!D6 -> 0
A80: Total | B80: =SUM(B76:B79) ->  | C80: =SUM(C76:C79) -> 

Sheet RC PasteDataHere (hidden)

Sheet RC Calculations (hidden)
A1: Total Usage | B1: =SUM('RC PasteDataHere'!E:E) -> 0
A3: E1 Usage Breakdown | H3: E6 Usage Breakdown | P3: ETOUA | U3: ETOUB | Y3: EVA
I4: Peak | J4: Partial | K4: Off | Q4: Peak | R4: Off | V4: Peak | W4: Off | Z4: Peak | AA4: Partial | AB4: Off
A5: January | B5: =SUM(IF(MONTH('RC PasteDataHere'!$B$7:$B$10000)=1,'RC PasteDataHere'!$E$7:$E$10000,0)) -> 0 | H5: January | J5: =SUM(IF(MONTH('RC PasteDataHere'!$B$7:$B$10000)=1,IF(WEEKDAY('RC PasteDataHere'!$B$7:$B$10000)=1,0,IF(WEEKDAY('RC PasteDataHere'!$B$7:$B$10000)=7,0,IF(HOUR('RC PasteDataHere'!$C$7:$C$10000)>16,IF(HOUR('RC PasteDataHere'!$C$7:$C$10000)<20,'RC PasteDataHere'!$E$7:$E$10000,0),0))))) -> 0 | K5: =B5-J5 -> 0 | P5: January | Q5: =SUM(IF(MONTH('RC PasteDataHere'!$B$7:$B$10000)=1,IF(WEEKDAY('RC PasteDataHere'!$B$7:$B$10000)=1,0,IF(WEEKDAY('RC PasteDataHere'!$B$7:$B$10000)=7,0,IF(HOUR('RC PasteDataHere'!$C$7:$C$10000)>14,IF(HOUR('RC PasteDataHere'!$C$7:$C$10000)<20,'RC PasteDataHere'!$E$7:$E$10000,0),0))))) -> 0 | R5: =$B5-Q5 -> 0 | U5: January | V5: =SUM(IF(MONTH('RC PasteDataHere'!$B$7:$B$10000)=1,IF(WEEKDAY('RC PasteDataHere'!$B$7:$B$10000)=1,0,IF(WEEKDAY('RC PasteDataHere'!$B$7:$B$10000)=7,0,IF(HOUR('RC PasteDataHere'!$C$7:$C$10000)>15,IF(HOUR('RC PasteDataHere'!$C$7:$C$10000)<21,'RC PasteDataHere'!$E$7:$E$10000,0),0))))) -> 0 | W5: =$B5-V5 -> 0 | Y5: January | Z5: =SUM(SUM(IF(MONTH('RC PasteDataHere'!$B$7:$B$10000)=1,IF(WEEKDAY('RC PasteDataHere'!$B$7:$B$10000)=1,0,IF(WEEKDAY('RC PasteDataHere'!$B$7:$B$10000)=7,0,IF(HOUR('RC PasteDataHere'!$C$7:$C$10000)>12,IF(HOUR('RC PasteDataHere'!$C$7:$C$10000)<21,'RC PasteDataHere'!$E$7:$E$10000,0),0)))),SUM(IF(MONTH('RC PasteDataHere'!$B$7:$B$10000)=1,IF(WEEKDAY('RC PasteDataHere'!$B$7:$B$10000)=1,IF(HOUR('RC PasteDataHere'!$C$7:$C$10000)>14,IF(HOUR('RC PasteDataHere'!$C$7:$C$10000)<19,'RC PasteDataHere'!$E$7:$E$10000,0),0)))),SUM(IF(MONTH('RC PasteDataHere'!$B$7:$B$10000)=1,IF(WEEKDAY('RC PasteDataHere'!$B$7:$B$10000)=7,IF(HOUR('RC PasteDataHere'!$C$7:$C$10000)>14,IF(HOUR('RC PasteDataHere'!$C$7:$C$10000)<19,'RC PasteDataHere'!$E$7:$E$10000,0),0)))))) -> 0 | AA5: =SUM(SUM(IF(MONTH('RC PasteDataHere'!$B$7:$B$10000)=1,IF(WEEKDAY('RC PasteDataHere'!$B$7:$B$10000)=1,0,IF(WEEKDAY('RC PasteDataHere'!$B$7:$B$10000)=7,0,IF(HOUR('RC PasteDataHere'!$C$7:$C$10000)>6,IF(HOUR('RC PasteDataHere'!$C$7:$C$10000)<14,'RC PasteDataHere'!$E$7:$E$10000,0),0)))),SUM(IF(MONTH('RC PasteDataHere'!$B$7:$B$10000)=1,IF(WEEKDAY('RC PasteDataHere'!$B$7:$B$10000)=1,0,IF(WEEKDAY('RC PasteDataHere'!$B$7:$B$10000)=7,0,IF(HOUR('RC PasteDataHere'!$C$7:$C$10000)>20,IF(HOUR('RC PasteDataHere'!$C$7:$C$10000)<23,'RC PasteDataHere'!$E$7:$E$10000,0),0))))))) -> 0 | AB5: =B5-AA5-Z5 -> 0
A6: February | B6: =SUM(IF(MONTH('RC PasteDataHere'!$B$7:$B$10000)=2,'RC PasteDataHere'!$E$7:$E$10000,0)) -> 0 | H6: February | J6: =SUM(IF(MONTH('RC PasteDataHere'!$B$7:$B$10000)=2,IF(WEEKDAY('RC PasteDataHere'!$B$7:$B$10000)=1,0,IF(WEEKDAY('RC PasteDataHere'!$B$7:$B$10000)=7,0,IF(HOUR('RC PasteDataHere'!$C$7:$C$10000)>16,IF(HOUR('RC PasteDataHere'!$C$7:$C$10000)<20,'RC PasteDataHere'!$E$7:$E$10000,0),0))))) -> 0 | K6: =B6-J6 -> 0 | P6: February | Q6: =SUM(IF(MONTH('RC PasteDataHere'!$B$7:$B$10000)=2,IF(WEEKDAY('RC PasteDataHere'!$B$7:$B$10000)=1,0,IF(WEEKDAY('RC PasteDataHere'!$B$7:$B$10000)=7,0,IF(HOUR('RC PasteDataHere'!$C$7:$C$10000)>14,IF(HOUR('RC PasteDataHere'!$C$7:$C$10000)<20,'RC PasteDataHere'!$E$7:$E$10000,0),0))))) -> 0 | R6: 0 | U6: February | V6: =SUM(IF(MONTH('RC PasteDataHere'!$B$7:$B$10000)=2,IF(WEEKDAY('RC PasteDataHere'!$B$7:$B$10000)=1,0,IF(WEEKDAY('RC PasteDataHere'!$B$7:$B$10000)=7,0,IF(HOUR('RC PasteDataHere'!$C$7:$C$10000)>15,IF(HOUR('RC PasteDataHere'!$C$7:$C$10000)<21,'RC PasteDataHere'!$E$7:$E$10000,0),0))))) -> 0 | W6: 0 | Y6: February | Z6: =SUM(SUM(IF(MONTH('RC PasteDataHere'!$B$7:$B$10000)=2,IF(WEEKDAY('RC PasteDataHere'!$B$7:$B$10000)=1,0,IF(WEEKDAY('RC PasteDataHere'!$B$7:$B$10000)=7,0,IF(HOUR('RC PasteDataHere'!$C$7:$C$10000)>12,IF(HOUR('RC PasteDataHere'!$C$7:$C$10000)<21,'RC PasteDataHere'!$E$7:$E$10000,0),0)))),SUM(IF(MONTH('RC PasteDataHere'!$B$7:$B$10000)=2,IF(WEEKDAY('RC PasteDataHere'!$B$7:$B$10000)=1,IF(HOUR('RC PasteDataHere'!$C$7:$C$10000)>14,IF(HOUR('RC PasteDataHere'!$C$7:$C$10000)<19,'RC PasteDataHere'!$E$7:$E$10000,0),0)))),SUM(IF(MONTH('RC PasteDataHere'!$B$7:$B$10000)=2,IF(WEEKDAY('RC PasteDataHere'!$B$7:$B$10000)=7,IF(HOUR('RC PasteDataHere'!$C$7:$C$10000)>14,IF(HOUR('RC PasteDataHere'!$C$7:$C$10000)<19,'RC PasteDataHere'!$E$7:$E$10000,0),0)))))) -> 0 | AA6: =SUM(SUM(IF(MONTH('RC PasteDataHere'!$B$7:$B$10000)=2,IF(WEEKDAY('RC PasteDataHere'!$B$7:$B$10000)=1,0,IF(WEEKDAY('RC PasteDataHere'!$B$7:$B$10000)=7,0,IF(HOUR('RC PasteDataHere'!$C$7:$C$10000)>6,IF(HOUR('RC PasteDataHere'!$C$7:$C$10000)<14,'RC PasteDataHere'!$E$7:$E$10000,0),0)))),SUM(IF(MONTH('RC PasteDataHere'!$B$7:$B$10000)=2,IF(WEEKDAY('RC PasteDataHere'!$B$7:$B$10000)=1,0,IF(WEEKDAY('RC PasteDataHere'!$B$7:$B$10000)=7,0,IF(HOUR('RC PasteDataHere'!$C$7:$C$10000)>20,IF(HOUR('RC PasteDataHere'!$C$7:$C$10000)<23,'RC PasteDataHere'!$E$7:$E$10000,0),0))))))) -> 0 | AB6: 0
A7: March | B7: =SUM(IF(MONTH('RC PasteDataHere'!$B$7:$B$10000)=3,'RC PasteDataHere'!$E$7:$E$10000,0)) -> 0 | H7: March | J7: =SUM(IF(MONTH('RC PasteDataHere'!$B$7:$B$10000)=3,IF(WEEKDAY('RC PasteDataHere'!$B$7:$B$10000)=1,0,IF(WEEKDAY('RC PasteDataHere'!$B$7:$B$10000)=7,0,IF(HOUR('RC PasteDataHere'!$C$7:$C$10000)>16,IF(HOUR('RC PasteDataHere'!$C$7:$C$10000)<20,'RC PasteDataHere'!$E$7:$E$10000,0),0))))) -> 0 | K7: =B7-J7 -> 0 | P7: March | Q7: =SUM(IF(MONTH('RC PasteDataHere'!$B$7:$B$10000)=3,IF(WEEKDAY('RC PasteDataHere'!$B$7:$B$10000)=1,0,IF(WEEKDAY('RC PasteDataHere'!$B$7:$B$10000)=7,0,IF(HOUR('RC PasteDataHere'!$C$7:$C$10000)>14,IF(HOUR('RC PasteDataHere'!$C$7:$C$10000)<20,'RC PasteDataHere'!$E$7:$E$10000,0),0))))) -> 0 | R7: 0 | U7: March | V7: =SUM(IF(MONTH('RC PasteDataHere'!$B$7:$B$10000)=3,IF(WEEKDAY('RC PasteDataHere'!$B$7:$B$10000)=1,0,IF(WEEKDAY('RC PasteDataHere'!$B$7:$B$10000)=7,0,IF(HOUR('RC PasteDataHere'!$C$7:$C$10000)>15,IF(HOUR('RC PasteDataHere'!$C$7:$C$10000)<21,'RC PasteDataHere'!$E$7:$E$10000,0),0))))) -> 0 | W7: 0 | Y7: March | Z7: =SUM(SUM(IF(MONTH('RC PasteDataHere'!$B$7:$B$10000)=3,IF(WEEKDAY('RC PasteDataHere'!$B$7:$B$10000)=1,0,IF(WEEKDAY('RC PasteDataHere'!$B$7:$B$10000)=7,0,IF(HOUR('RC PasteDataHere'!$C$7:$C$10000)>12,IF(HOUR('RC PasteDataHere'!$C$7:$C$10000)<21,'RC PasteDataHere'!$E$7:$E$10000,0),0)))),SUM(IF(MONTH('RC PasteDataHere'!$B$7:$B$10000)=3,IF(WEEKDAY('RC PasteDataHere'!$B$7:$B$10000)=1,IF(HOUR('RC PasteDataHere'!$C$7:$C$10000)>14,IF(HOUR('RC PasteDataHere'!$C$7:$C$10000)<19,'RC PasteDataHere'!$E$7:$E$10000,0),0)))),SUM(IF(MONTH('RC PasteDataHere'!$B$7:$B$10000)=3,IF(WEEKDAY('RC PasteDataHere'!$B$7:$B$10000)=7,IF(HOUR('RC PasteDataHere'!$C$7:$C$10000)>14,IF(HOUR('RC PasteDataHere'!$C$7:$C$10000)<19,'RC PasteDataHere'!$E$7:$E$10000,0),0)))))) -> 0 | AA7: =SUM(SUM(IF(MONTH('RC PasteDataHere'!$B$7:$B$10000)=3,IF(WEEKDAY('RC PasteDataHere'!$B$7:$B$10000)=1,0,IF(WEEKDAY('RC PasteDataHere'!$B$7:$B$10000)=7,0,IF(HOUR('RC PasteDataHere'!$C$7:$C$10000)>6,IF(HOUR('RC PasteDataHere'!$C$7:$C$10000)<14,'RC PasteDataHere'!$E$7:$E$10000,0),0)))),SUM(IF(MONTH('RC PasteDataHere'!$B$7:$B$10000)=3,IF(WEEKDAY('RC PasteDataHere'!$B$7:$B$10000)=1,0,IF(WEEKDAY('RC PasteDataHere'!$B$7:$B$10000)=7,0,IF(HOUR('RC PasteDataHere'!$C$7:$C$10000)>20,IF(HOUR('RC PasteDataHere'!$C$7:$C$10000)<23,'RC PasteDataHere'!$E$7:$E$10000,0),0))))))) -> 0 | AB7: 0
A8: April | B8: =SUM(IF(MONTH('RC PasteDataHere'!$B$7:$B$10000)=4,'RC PasteDataHere'!$E$7:$E$10000,0)) -> 0 | H8: April | J8: =SUM(IF(MONTH('RC PasteDataHere'!$B$7:$B$10000)=4,IF(WEEKDAY('RC PasteDataHere'!$B$7:$B$10000)=1,0,IF(WEEKDAY('RC PasteDataHere'!$B$7:$B$10000)=7,0,IF(HOUR('RC PasteDataHere'!$C$7:$C$10000)>16,IF(HOUR('RC PasteDataHere'!$C$7:$C$10000)<20,'RC PasteDataHere'!$E$7:$E$10000,0),0))))) -> 0 | K8: =B8-J8 -> 0 | P8: April | Q8: =SUM(IF(MONTH('RC PasteDataHere'!$B$7:$B$10000)=4,IF(WEEKDAY('RC PasteDataHere'!$B$7:$B$10000)=1,0,IF(WEEKDAY('RC PasteDataHere'!$B$7:$B$10000)=7,0,IF(HOUR('RC PasteDataHere'!$C$7:$C$10000)>14,IF(HOUR('RC PasteDataHere'!$C$7:$C$10000)<20,'RC PasteDataHere'!$E$7:$E$10000,0),0))))) -> 0 | R8: 0 | U8: April | V8: =SUM(IF(MONTH('RC PasteDataHere'!$B$7:$B$10000)=4,IF(WEEKDAY('RC PasteDataHere'!$B$7:$B$10000)=1,0,IF(WEEKDAY('RC PasteDataHere'!$B$7:$B$10000)=7,0,IF(HOUR('RC PasteDataHere'!$C$7:$C$10000)>15,IF(HOUR('RC PasteDataHere'!$C$7:$C$10000)<21,'RC PasteDataHere'!$E$7:$E$10000,0),0))))) -> 0 | W8: 0 | Y8: April | Z8: =SUM(SUM(IF(MONTH('RC PasteDataHere'!$B$7:$B$10000)=4,IF(WEEKDAY('RC PasteDataHere'!$B$7:$B$10000)=1,0,IF(WEEKDAY('RC PasteDataHere'!$B$7:$B$10000)=7,0,IF(HOUR('RC PasteDataHere'!$C$7:$C$10000)>12,IF(HOUR('RC PasteDataHere'!$C$7:$C$10000)<21,'RC PasteDataHere'!$E$7:$E$10000,0),0)))),SUM(IF(MONTH('RC PasteDataHere'!$B$7:$B$10000)=4,IF(WEEKDAY('RC PasteDataHere'!$B$7:$B$10000)=1,IF(HOUR('RC PasteDataHere'!$C$7:$C$10000)>14,IF(HOUR('RC PasteDataHere'!$C$7:$C$10000)<19,'RC PasteDataHere'!$E$7:$E$10000,0),0)))),SUM(IF(MONTH('RC PasteDataHere'!$B$7:$B$10000)=4,IF(WEEKDAY('RC PasteDataHere'!$B$7:$B$10000)=7,IF(HOUR('RC PasteDataHere'!$C$7:$C$10000)>14,IF(HOUR('RC PasteDataHere'!$C$7:$C$10000)<19,'RC PasteDataHere'!$E$7:$E$10000,0),0)))))) -> 0 | AA8: =SUM(SUM(IF(MONTH('RC PasteDataHere'!$B$7:$B$10000)=4,IF(WEEKDAY('RC PasteDataHere'!$B$7:$B$10000)=1,0,IF(WEEKDAY('RC PasteDataHere'!$B$7:$B$10000)=7,0,IF(HOUR('RC PasteDataHere'!$C$7:$C$10000)>6,IF(HOUR('RC PasteDataHere'!$C$7:$C$10000)<14,'RC PasteDataHere'!$E$7:$E$10000,0),0)))),SUM(IF(MONTH('RC PasteDataHere'!$B$7:$B$10000)=4,IF(WEEKDAY('RC PasteDataHere'!$B$7:$B$10000)=1,0,IF(WEEKDAY('RC PasteDataHere'!$B$7:$B$10000)=7,0,IF(HOUR('RC PasteDataHere'!$C$7:$C$10000)>20,IF(HOUR('RC PasteDataHere'!$C$7:$C$10000)<23,'RC PasteDataHere'!$E$7:$E$10000,0),0))))))) -> 0 | AB8: 0
A9: May | B9: =SUM(IF(MONTH('RC PasteDataHere'!$B$7:$B$10000)=5,'RC PasteDataHere'!$E$7:$E$10000,0)) -> 0 | H9: May | I9: =SUM(IF(MONTH('RC PasteDataHere'!$B$7:$B$10000)=5,IF(WEEKDAY('RC PasteDataHere'!$B$7:$B$10000)=1,0,IF(WEEKDAY('RC PasteDataHere'!$B$7:$B$10000)=7,0,IF(HOUR('RC PasteDataHere'!$C$7:$C$10000)>12,IF(HOUR('RC PasteDataHere'!$C$7:$C$10000)<19,'RC PasteDataHere'!$E$7:$E$10000,0),0))))) -> 0 | J9: =SUM(SUM(IF(MONTH('RC PasteDataHere'!$B$7:$B$10000)=5,IF(WEEKDAY('RC PasteDataHere'!$B$7:$B$10000)=1,0,IF(WEEKDAY('RC PasteDataHere'!$B$7:$B$10000)=7,0,IF(HOUR('RC PasteDataHere'!$C$7:$C$10000)>9,IF(HOUR('RC PasteDataHere'!$C$7:$C$10000)<13,'RC PasteDataHere'!$E$7:$E$10000,0),0)))),SUM(IF(MONTH('RC PasteDataHere'!$B$7:$B$10000)=5,IF(WEEKDAY('RC PasteDataHere'!$B$7:$B$10000)=1,0,IF(WEEKDAY('RC PasteDataHere'!$B$7:$B$10000)=7,0,IF(HOUR('RC PasteDataHere'!$C$7:$C$10000)>18,IF(HOUR('RC PasteDataHere'!$C$7:$C$10000)<21,'RC PasteDataHere'!$E$7:$E$10000,0),0))))),SUM(IF(MONTH('RC PasteDataHere'!$B$7:$B$10000)=5,IF(WEEKDAY('RC PasteDataHere'!$B$7:$B$10000)=1,IF(HOUR('RC PasteDataHere'!$C$7:$C$10000)>16,IF(HOUR('RC PasteDataHere'!$C$7:$C$10000)<20,'RC PasteDataHere'!$E$7:$E$10000,0),0)))),SUM(IF(MONTH('RC PasteDataHere'!$B$7:$B$10000)=5,IF(WEEKDAY('RC PasteDataHere'!$B$7:$B$10000)=7,IF(HOUR('RC PasteDataHere'!$C$7:$C$10000)>16,IF(HOUR('RC PasteDataHere'!$C$7:$C$10000)<20,'RC PasteDataHere'!$E$7:$E$10000,0),0)))))) -> 0 | K9: =B9-SUM(I9:J9) -> 0 | P9: May | Q9: =SUM(IF(MONTH('RC PasteDataHere'!$B$7:$B$10000)=5,IF(WEEKDAY('RC PasteDataHere'!$B$7:$B$10000)=1,0,IF(WEEKDAY('RC PasteDataHere'!$B$7:$B$10000)=7,0,IF(HOUR('RC PasteDataHere'!$C$7:$C$10000)>14,IF(HOUR('RC PasteDataHere'!$C$7:$C$10000)<20,'RC PasteDataHere'!$E$7:$E$10000,0),0))))) -> 0 | R9: 0 | U9: May | V9: =SUM(IF(MONTH('RC PasteDataHere'!$B$7:$B$10000)=5,IF(WEEKDAY('RC PasteDataHere'!$B$7:$B$10000)=1,0,IF(WEEKDAY('RC PasteDataHere'!$B$7:$B$10000)=7,0,IF(HOUR('RC PasteDataHere'!$C$7:$C$10000)>15,IF(HOUR('RC PasteDataHere'!$C$7:$C$10000)<21,'RC PasteDataHere'!$E$7:$E$10000,0),0))))) -> 0 | W9: 0 | Y9: May | Z9: =SUM(SUM(IF(MONTH('RC PasteDataHere'!$B$7:$B$10000)=5,IF(WEEKDAY('RC PasteDataHere'!$B$7:$B$10000)=1,0,IF(WEEKDAY('RC PasteDataHere'!$B$7:$B$10000)=7,0,IF(HOUR('RC PasteDataHere'!$C$7:$C$10000)>12,IF(HOUR('RC PasteDataHere'!$C$7:$C$10000)<21,'RC PasteDataHere'!$E$7:$E$10000,0),0)))),SUM(IF(MONTH('RC PasteDataHere'!$B$7:$B$10000)=5,IF(WEEKDAY('RC PasteDataHere'!$B$7:$B$10000)=1,IF(HOUR('RC PasteDataHere'!$C$7:$C$10000)>14,IF(HOUR('RC PasteDataHere'!$C$7:$C$10000)<19,'RC PasteDataHere'!$E$7:$E$10000,0),0)))),SUM(IF(MONTH('RC PasteDataHere'!$B$7:$B$10000)=5,IF(WEEKDAY('RC PasteDataHere'!$B$7:$B$10000)=7,IF(HOUR('RC PasteDataHere'!$C$7:$C$10000)>14,IF(HOUR('RC PasteDataHere'!$C$7:$C$10000)<19,'RC PasteDataHere'!$E$7:$E$10000,0),0)))))) -> 0 | AA9: =SUM(SUM(IF(MONTH('RC PasteDataHere'!$B$7:$B$10000)=5,IF(WEEKDAY('RC PasteDataHere'!$B$7:$B$10000)=1,0,IF(WEEKDAY('RC PasteDataHere'!$B$7:$B$10000)=7,0,IF(HOUR('RC PasteDataHere'!$C$7:$C$10000)>6,IF(HOUR('RC PasteDataHere'!$C$7:$C$10000)<14,'RC PasteDataHere'!$E$7:$E$10000,0),0)))),SUM(IF(MONTH('RC PasteDataHere'!$B$7:$B$10000)=5,IF(WEEKDAY('RC PasteDataHere'!$B$7:$B$10000)=1,0,IF(WEEKDAY('RC PasteDataHere'!$B$7:$B$10000)=7,0,IF(HOUR('RC PasteDataHere'!$C$7:$C$10000)>20,IF(HOUR('RC PasteDataHere'!$C$7:$C$10000)<23,'RC PasteDataHere'!$E$7:$E$10000,0),0))))))) -> 0 | AB9: 0
A10: June | B10: =SUM(IF(MONTH('RC PasteDataHere'!$B$7:$B$10000)=6,'RC PasteDataHere'!$E$7:$E$10000,0)) -> 0 | H10: June | I10: =SUM(IF(MONTH('RC PasteDataHere'!$B$7:$B$10000)=6,IF(WEEKDAY('RC PasteDataHere'!$B$7:$B$10000)=1,0,IF(WEEKDAY('RC PasteDataHere'!$B$7:$B$10000)=7,0,IF(HOUR('RC PasteDataHere'!$C$7:$C$10000)>12,IF(HOUR('RC PasteDataHere'!$C$7:$C$10000)<19,'RC PasteDataHere'!$E$7:$E$10000,0),0))))) -> 0 | J10: =SUM(SUM(IF(MONTH('RC PasteDataHere'!$B$7:$B$10000)=6,IF(WEEKDAY('RC PasteDataHere'!$B$7:$B$10000)=1,0,IF(WEEKDAY('RC PasteDataHere'!$B$7:$B$10000)=7,0,IF(HOUR('RC PasteDataHere'!$C$7:$C$10000)>9,IF(HOUR('RC PasteDataHere'!$C$7:$C$10000)<13,'RC PasteDataHere'!$E$7:$E$10000,0),0)))),SUM(IF(MONTH('RC PasteDataHere'!$B$7:$B$10000)=6,IF(WEEKDAY('RC PasteDataHere'!$B$7:$B$10000)=1,0,IF(WEEKDAY('RC PasteDataHere'!$B$7:$B$10000)=7,0,IF(HOUR('RC PasteDataHere'!$C$7:$C$10000)>18,IF(HOUR('RC PasteDataHere'!$C$7:$C$10000)<21,'RC PasteDataHere'!$E$7:$E$10000,0),0))))),SUM(IF(MONTH('RC PasteDataHere'!$B$7:$B$10000)=6,IF(WEEKDAY('RC PasteDataHere'!$B$7:$B$10000)=1,IF(HOUR('RC PasteDataHere'!$C$7:$C$10000)>16,IF(HOUR('RC PasteDataHere'!$C$7:$C$10000)<20,'RC PasteDataHere'!$E$7:$E$10000,0),0)))),SUM(IF(MONTH('RC PasteDataHere'!$B$7:$B$10000)=6,IF(WEEKDAY('RC PasteDataHere'!$B$7:$B$10000)=7,IF(HOUR('RC PasteDataHere'!$C$7:$C$10000)>16,IF(HOUR('RC PasteDataHere'!$C$7:$C$10000)<20,'RC PasteDataHere'!$E$7:$E$10000,0),0)))))) -> 0 | K10: 0 | P10: June | Q10: =SUM(IF(MONTH('RC PasteDataHere'!$B$7:$B$10000)=6,IF(WEEKDAY('RC PasteDataHere'!$B$7:$B$10000)=1,0,IF(WEEKDAY('RC PasteDataHere'!$B$7:$B$10000)=7,0,IF(HOUR('RC PasteDataHere'!$C$7:$C$10000)>14,IF(HOUR('RC PasteDataHere'!$C$7:$C$10000)<20,'RC PasteDataHere'!$E$7:$E$10000,0),0))))) -> 0 | R10: 0 | U10: June | V10: =SUM(IF(MONTH('RC PasteDataHere'!$B$7:$B$10000)=6,IF(WEEKDAY('RC PasteDataHere'!$B$7:$B$10000)=1,0,IF(WEEKDAY('RC PasteDataHere'!$B$7:$B$10000)=7,0,IF(HOUR('RC PasteDataHere'!$C$7:$C$10000)>15,IF(HOUR('RC PasteDataHere'!$C$7:$C$10000)<21,'RC PasteDataHere'!$E$7:$E$10000,0),0))))) -> 0 | W10: 0 | Y10: June | Z10: =SUM(SUM(IF(MONTH('RC PasteDataHere'!$B$7:$B$10000)=6,IF(WEEKDAY('RC PasteDataHere'!$B$7:$B$10000)=1,0,IF(WEEKDAY('RC PasteDataHere'!$B$7:$B$10000)=7,0,IF(HOUR('RC PasteDataHere'!$C$7:$C$10000)>12,IF(HOUR('RC PasteDataHere'!$C$7:$C$10000)<21,'RC PasteDataHere'!$E$7:$E$10000,0),0)))),SUM(IF(MONTH('RC PasteDataHere'!$B$7:$B$10000)=6,IF(WEEKDAY('RC PasteDataHere'!$B$7:$B$10000)=1,IF(HOUR('RC PasteDataHere'!$C$7:$C$10000)>14,IF(HOUR('RC PasteDataHere'!$C$7:$C$10000)<19,'RC PasteDataHere'!$E$7:$E$10000,0),0)))),SUM(IF(MONTH('RC PasteDataHere'!$B$7:$B$10000)=6,IF(WEEKDAY('RC PasteDataHere'!$B$7:$B$10000)=7,IF(HOUR('RC PasteDataHere'!$C$7:$C$10000)>14,IF(HOUR('RC PasteDataHere'!$C$7:$C$10000)<19,'RC PasteDataHere'!$E$7:$E$10000,0),0)))))) -> 0 | AA10: =SUM(SUM(IF(MONTH('RC PasteDataHere'!$B$7:$B$10000)=6,IF(WEEKDAY('RC PasteDataHere'!$B$7:$B$10000)=1,0,IF(WEEKDAY('RC PasteDataHere'!$B$7:$B$10000)=7,0,IF(HOUR('RC PasteDataHere'!$C$7:$C$10000)>6,IF(HOUR('RC PasteDataHere'!$C$7:$C$10000)<14,'RC PasteDataHere'!$E$7:$E$10000,0),0)))),SUM(IF(MONTH('RC PasteDataHere'!$B$7:$B$10000)=6,IF(WEEKDAY('RC PasteDataHere'!$B$7:$B$10000)=1,0,IF(WEEKDAY('RC PasteDataHere'!$B$7:$B$10000)=7,0,IF(HOUR('RC PasteDataHere'!$C$7:$C$10000)>20,IF(HOUR('RC PasteDataHere'!$C$7:$C$10000)<23,'RC PasteDataHere'!$E$7:$E$10000,0),0))))))) -> 0 | AB10: 0
A11: July | B11: =SUM(IF(MONTH('RC PasteDataHere'!$B$7:$B$10000)=7,'RC PasteDataHere'!$E$7:$E$10000,0)) -> 0 | H11: July | I11: =SUM(IF(MONTH('RC PasteDataHere'!$B$7:$B$10000)=7,IF(WEEKDAY('RC PasteDataHere'!$B$7:$B$10000)=1,0,IF(WEEKDAY('RC PasteDataHere'!$B$7:$B$10000)=7,0,IF(HOUR('RC PasteDataHere'!$C$7:$C$10000)>12,IF(HOUR('RC PasteDataHere'!$C$7:$C$10000)<19,'RC PasteDataHere'!$E$7:$E$10000,0),0))))) -> 0 | J11: =SUM(SUM(IF(MONTH('RC PasteDataHere'!$B$7:$B$10000)=7,IF(WEEKDAY('RC PasteDataHere'!$B$7:$B$10000)=1,0,IF(WEEKDAY('RC PasteDataHere'!$B$7:$B$10000)=7,0,IF(HOUR('RC PasteDataHere'!$C$7:$C$10000)>9,IF(HOUR('RC PasteDataHere'!$C$7:$C$10000)<13,'RC PasteDataHere'!$E$7:$E$10000,0),0)))),SUM(IF(MONTH('RC PasteDataHere'!$B$7:$B$10000)=7,IF(WEEKDAY('RC PasteDataHere'!$B$7:$B$10000)=1,0,IF(WEEKDAY('RC PasteDataHere'!$B$7:$B$10000)=7,0,IF(HOUR('RC PasteDataHere'!$C$7:$C$10000)>18,IF(HOUR('RC PasteDataHere'!$C$7:$C$10000)<21,'RC PasteDataHere'!$E$7:$E$10000,0),0))))),SUM(IF(MONTH('RC PasteDataHere'!$B$7:$B$10000)=7,IF(WEEKDAY('RC PasteDataHere'!$B$7:$B$10000)=1,IF(HOUR('RC PasteDataHere'!$C$7:$C$10000)>16,IF(HOUR('RC PasteDataHere'!$C$7:$C$10000)<20,'RC PasteDataHere'!$E$7:$E$10000,0),0)))),SUM(IF(MONTH('RC PasteDataHere'!$B$7:$B$10000)=7,IF(WEEKDAY('RC PasteDataHere'!$B$7:$B$10000)=7,IF(HOUR('RC PasteDataHere'!$C$7:$C$10000)>16,IF(HOUR('RC PasteDataHere'!$C$7:$C$10000)<20,'RC PasteDataHere'!$E$7:$E$10000,0),0)))))) -> 0 | K11: 0 | P11: July | Q11: =SUM(IF(MONTH('RC PasteDataHere'!$B$7:$B$10000)=7,IF(WEEKDAY('RC PasteDataHere'!$B$7:$B$10000)=1,0,IF(WEEKDAY('RC PasteDataHere'!$B$7:$B$10000)=7,0,IF(HOUR('RC PasteDataHere'!$C$7:$C$10000)>14,IF(HOUR('RC PasteDataHere'!$C$7:$C$10000)<20,'RC PasteDataHere'!$E$7:$E$10000,0),0))))) -> 0 | R11: 0 | U11: July | V11: =SUM(IF(MONTH('RC PasteDataHere'!$B$7:$B$10000)=7,IF(WEEKDAY('RC PasteDataHere'!$B$7:$B$10000)=1,0,IF(WEEKDAY('RC PasteDataHere'!$B$7:$B$10000)=7,0,IF(HOUR('RC PasteDataHere'!$C$7:$C$10000)>15,IF(HOUR('RC PasteDataHere'!$C$7:$C$10000)<21,'RC PasteDataHere'!$E$7:$E$10000,0),0))))) -> 0 | W11: 0 | Y11: July | Z11: =SUM(SUM(IF(MONTH('RC PasteDataHere'!$B$7:$B$10000)=7,IF(WEEKDAY('RC PasteDataHere'!$B$7:$B$10000)=1,0,IF(WEEKDAY('RC PasteDataHere'!$B$7:$B$10000)=7,0,IF(HOUR('RC PasteDataHere'!$C$7:$C$10000)>12,IF(HOUR('RC PasteDataHere'!$C$7:$C$10000)<21,'RC PasteDataHere'!$E$7:$E$10000,0),0)))),SUM(IF(MONTH('RC PasteDataHere'!$B$7:$B$10000)=7,IF(WEEKDAY('RC PasteDataHere'!$B$7:$B$10000)=1,IF(HOUR('RC PasteDataHere'!$C$7:$C$10000)>14,IF(HOUR('RC PasteDataHere'!$C$7:$C$10000)<19,'RC PasteDataHere'!$E$7:$E$10000,0),0)))),SUM(IF(MONTH('RC PasteDataHere'!$B$7:$B$10000)=7,IF(WEEKDAY('RC PasteDataHere'!$B$7:$B$10000)=7,IF(HOUR('RC PasteDataHere'!$C$7:$C$10000)>14,IF(HOUR('RC PasteDataHere'!$C$7:$C$10000)<19,'RC PasteDataHere'!$E$7:$E$10000,0),0)))))) -> 0 | AA11: =SUM(SUM(IF(MONTH('RC PasteDataHere'!$B$7:$B$10000)=7,IF(WEEKDAY('RC PasteDataHere'!$B$7:$B$10000)=1,0,IF(WEEKDAY('RC PasteDataHere'!$B$7:$B$10000)=7,0,IF(HOUR('RC PasteDataHere'!$C$7:$C$10000)>6,IF(HOUR('RC PasteDataHere'!$C$7:$C$10000)<14,'RC PasteDataHere'!$E$7:$E$10000,0),0)))),SUM(IF(MONTH('RC PasteDataHere'!$B$7:$B$10000)=7,IF(WEEKDAY('RC PasteDataHere'!$B$7:$B$10000)=1,0,IF(WEEKDAY('RC PasteDataHere'!$B$7:$B$10000)=7,0,IF(HOUR('RC PasteDataHere'!$C$7:$C$10000)>20,IF(HOUR('RC PasteDataHere'!$C$7:$C$10000)<23,'RC PasteDataHere'!$E$7:$E$10000,0),0))))))) -> 0 | AB11: 0
A12: August | B12: =SUM(IF(MONTH('RC PasteDataHere'!$B$7:$B$10000)=8,'RC PasteDataHere'!$E$7:$E$10000,0)) -> 0 | H12: August | I12: =SUM(IF(MONTH('RC PasteDataHere'!$B$7:$B$10000)=8,IF(WEEKDAY('RC PasteDataHere'!$B$7:$B$10000)=1,0,IF(WEEKDAY('RC PasteDataHere'!$B$7:$B$10000)=7,0,IF(HOUR('RC PasteDataHere'!$C$7:$C$10000)>12,IF(HOUR('RC PasteDataHere'!$C$7:$C$10000)<19,'RC PasteDataHere'!$E$7:$E$10000,0),0))))) -> 0 | J12: =SUM(SUM(IF(MONTH('RC PasteDataHere'!$B$7:$B$10000)=8,IF(WEEKDAY('RC PasteDataHere'!$B$7:$B$10000)=1,0,IF(WEEKDAY('RC PasteDataHere'!$B$7:$B$10000)=8,0,IF(HOUR('RC PasteDataHere'!$C$7:$C$10000)>9,IF(HOUR('RC PasteDataHere'!$C$7:$C$10000)<13,'RC PasteDataHere'!$E$7:$E$10000,0),0)))),SUM(IF(MONTH('RC PasteDataHere'!$B$7:$B$10000)=8,IF(WEEKDAY('RC PasteDataHere'!$B$7:$B$10000)=1,0,IF(WEEKDAY('RC PasteDataHere'!$B$7:$B$10000)=8,0,IF(HOUR('RC PasteDataHere'!$C$7:$C$10000)>18,IF(HOUR('RC PasteDataHere'!$C$7:$C$10000)<21,'RC PasteDataHere'!$E$7:$E$10000,0),0))))),SUM(IF(MONTH('RC PasteDataHere'!$B$7:$B$10000)=8,IF(WEEKDAY('RC PasteDataHere'!$B$7:$B$10000)=1,IF(HOUR('RC PasteDataHere'!$C$7:$C$10000)>16,IF(HOUR('RC PasteDataHere'!$C$7:$C$10000)<20,'RC PasteDataHere'!$E$7:$E$10000,0),0)))),SUM(IF(MONTH('RC PasteDataHere'!$B$7:$B$10000)=8,IF(WEEKDAY('RC PasteDataHere'!$B$7:$B$10000)=8,IF(HOUR('RC PasteDataHere'!$C$7:$C$10000)>16,IF(HOUR('RC PasteDataHere'!$C$7:$C$10000)<20,'RC PasteDataHere'!$E$7:$E$10000,0),0)))))) -> 0 | K12: 0 | P12: August | Q12: =SUM(IF(MONTH('RC PasteDataHere'!$B$7:$B$10000)=8,IF(WEEKDAY('RC PasteDataHere'!$B$7:$B$10000)=1,0,IF(WEEKDAY('RC PasteDataHere'!$B$7:$B$10000)=7,0,IF(HOUR('RC PasteDataHere'!$C$7:$C$10000)>14,IF(HOUR('RC PasteDataHere'!$C$7:$C$10000)<20,'RC PasteDataHere'!$E$7:$E$10000,0),0))))) -> 0 | R12: 0 | U12: August | V12: =SUM(IF(MONTH('RC PasteDataHere'!$B$7:$B$10000)=8,IF(WEEKDAY('RC PasteDataHere'!$B$7:$B$10000)=1,0,IF(WEEKDAY('RC PasteDataHere'!$B$7:$B$10000)=7,0,IF(HOUR('RC PasteDataHere'!$C$7:$C$10000)>15,IF(HOUR('RC PasteDataHere'!$C$7:$C$10000)<21,'RC PasteDataHere'!$E$7:$E$10000,0),0))))) -> 0 | W12: 0 | Y12: August | Z12: =SUM(SUM(IF(MONTH('RC PasteDataHere'!$B$7:$B$10000)=8,IF(WEEKDAY('RC PasteDataHere'!$B$7:$B$10000)=1,0,IF(WEEKDAY('RC PasteDataHere'!$B$7:$B$10000)=7,0,IF(HOUR('RC PasteDataHere'!$C$7:$C$10000)>12,IF(HOUR('RC PasteDataHere'!$C$7:$C$10000)<21,'RC PasteDataHere'!$E$7:$E$10000,0),0)))),SUM(IF(MONTH('RC PasteDataHere'!$B$7:$B$10000)=8,IF(WEEKDAY('RC PasteDataHere'!$B$7:$B$10000)=1,IF(HOUR('RC PasteDataHere'!$C$7:$C$10000)>14,IF(HOUR('RC PasteDataHere'!$C$7:$C$10000)<19,'RC PasteDataHere'!$E$7:$E$10000,0),0)))),SUM(IF(MONTH('RC PasteDataHere'!$B$7:$B$10000)=8,IF(WEEKDAY('RC PasteDataHere'!$B$7:$B$10000)=7,IF(HOUR('RC PasteDataHere'!$C$7:$C$10000)>14,IF(HOUR('RC PasteDataHere'!$C$7:$C$10000)<19,'RC PasteDataHere'!$E$7:$E$10000,0),0)))))) -> 0 | AA12: =SUM(SUM(IF(MONTH('RC PasteDataHere'!$B$7:$B$10000)=8,IF(WEEKDAY('RC PasteDataHere'!$B$7:$B$10000)=1,0,IF(WEEKDAY('RC PasteDataHere'!$B$7:$B$10000)=7,0,IF(HOUR('RC PasteDataHere'!$C$7:$C$10000)>6,IF(HOUR('RC PasteDataHere'!$C$7:$C$10000)<14,'RC PasteDataHere'!$E$7:$E$10000,0),0)))),SUM(IF(MONTH('RC PasteDataHere'!$B$7:$B$10000)=8,IF(WEEKDAY('RC PasteDataHere'!$B$7:$B$10000)=1,0,IF(WEEKDAY('RC PasteDataHere'!$B$7:$B$10000)=7,0,IF(HOUR('RC PasteDataHere'!$C$7:$C$10000)>20,IF(HOUR('RC PasteDataHere'!$C$7:$C$10000)<23,'RC PasteDataHere'!$E$7:$E$10000,0),0))))))) -> 0 | AB12: 0
A13: September | B13: =SUM(IF(MONTH('RC PasteDataHere'!$B$7:$B$10000)=9,'RC PasteDataHere'!$E$7:$E$10000,0)) -> 0 | H13: September | I13: =SUM(IF(MONTH('RC PasteDataHere'!$B$7:$B$10000)=9,IF(WEEKDAY('RC PasteDataHere'!$B$7:$B$10000)=1,0,IF(WEEKDAY('RC PasteDataHere'!$B$7:$B$10000)=7,0,IF(HOUR('RC PasteDataHere'!$C$7:$C$10000)>12,IF(HOUR('RC PasteDataHere'!$C$7:$C$10000)<19,'RC PasteDataHere'!$E$7:$E$10000,0),0))))) -> 0 | J13: =SUM(SUM(IF(MONTH('RC PasteDataHere'!$B$7:$B$10000)=9,IF(WEEKDAY('RC PasteDataHere'!$B$7:$B$10000)=1,0,IF(WEEKDAY('RC PasteDataHere'!$B$7:$B$10000)=9,0,IF(HOUR('RC PasteDataHere'!$C$7:$C$10000)>9,IF(HOUR('RC PasteDataHere'!$C$7:$C$10000)<13,'RC PasteDataHere'!$E$7:$E$10000,0),0)))),SUM(IF(MONTH('RC PasteDataHere'!$B$7:$B$10000)=9,IF(WEEKDAY('RC PasteDataHere'!$B$7:$B$10000)=1,0,IF(WEEKDAY('RC PasteDataHere'!$B$7:$B$10000)=9,0,IF(HOUR('RC PasteDataHere'!$C$7:$C$10000)>18,IF(HOUR('RC PasteDataHere'!$C$7:$C$10000)<21,'RC PasteDataHere'!$E$7:$E$10000,0),0))))),SUM(IF(MONTH('RC PasteDataHere'!$B$7:$B$10000)=9,IF(WEEKDAY('RC PasteDataHere'!$B$7:$B$10000)=1,IF(HOUR('RC PasteDataHere'!$C$7:$C$10000)>16,IF(HOUR('RC PasteDataHere'!$C$7:$C$10000)<20,'RC PasteDataHere'!$E$7:$E$10000,0),0)))),SUM(IF(MONTH('RC PasteDataHere'!$B$7:$B$10000)=9,IF(WEEKDAY('RC PasteDataHere'!$B$7:$B$10000)=9,IF(HOUR('RC PasteDataHere'!$C$7:$C$10000)>16,IF(HOUR('RC PasteDataHere'!$C$7:$C$10000)<20,'RC PasteDataHere'!$E$7:$E$10000,0),0)))))) -> 0 | K13: 0 | P13: September | Q13: =SUM(IF(MONTH('RC PasteDataHere'!$B$7:$B$10000)=9,IF(WEEKDAY('RC PasteDataHere'!$B$7:$B$10000)=1,0,IF(WEEKDAY('RC PasteDataHere'!$B$7:$B$10000)=7,0,IF(HOUR('RC PasteDataHere'!$C$7:$C$10000)>14,IF(HOUR('RC PasteDataHere'!$C$7:$C$10000)<20,'RC PasteDataHere'!$E$7:$E$10000,0),0))))) -> 0 | R13: 0 | U13: September | V13: =SUM(IF(MONTH('RC PasteDataHere'!$B$7:$B$10000)=9,IF(WEEKDAY('RC PasteDataHere'!$B$7:$B$10000)=1,0,IF(WEEKDAY('RC PasteDataHere'!$B$7:$B$10000)=7,0,IF(HOUR('RC PasteDataHere'!$C$7:$C$10000)>15,IF(HOUR('RC PasteDataHere'!$C$7:$C$10000)<21,'RC PasteDataHere'!$E$7:$E$10000,0),0))))) -> 0 | W13: 0 | Y13: September | Z13: =SUM(SUM(IF(MONTH('RC PasteDataHere'!$B$7:$B$10000)=9,IF(WEEKDAY('RC PasteDataHere'!$B$7:$B$10000)=1,0,IF(WEEKDAY('RC PasteDataHere'!$B$7:$B$10000)=7,0,IF(HOUR('RC PasteDataHere'!$C$7:$C$10000)>12,IF(HOUR('RC PasteDataHere'!$C$7:$C$10000)<21,'RC PasteDataHere'!$E$7:$E$10000,0),0)))),SUM(IF(MONTH('RC PasteDataHere'!$B$7:$B$10000)=9,IF(WEEKDAY('RC PasteDataHere'!$B$7:$B$10000)=1,IF(HOUR('RC PasteDataHere'!$C$7:$C$10000)>14,IF(HOUR('RC PasteDataHere'!$C$7:$C$10000)<19,'RC PasteDataHere'!$E$7:$E$10000,0),0)))),SUM(IF(MONTH('RC PasteDataHere'!$B$7:$B$10000)=9,IF(WEEKDAY('RC PasteDataHere'!$B$7:$B$10000)=7,IF(HOUR('RC PasteDataHere'!$C$7:$C$10000)>14,IF(HOUR('RC PasteDataHere'!$C$7:$C$10000)<19,'RC PasteDataHere'!$E$7:$E$10000,0),0)))))) -> 0 | AA13: =SUM(SUM(IF(MONTH('RC PasteDataHere'!$B$7:$B$10000)=9,IF(WEEKDAY('RC PasteDataHere'!$B$7:$B$10000)=1,0,IF(WEEKDAY('RC PasteDataHere'!$B$7:$B$10000)=7,0,IF(HOUR('RC PasteDataHere'!$C$7:$C$10000)>6,IF(HOUR('RC PasteDataHere'!$C$7:$C$10000)<14,'RC PasteDataHere'!$E$7:$E$10000,0),0)))),SUM(IF(MONTH('RC PasteDataHere'!$B$7:$B$10000)=9,IF(WEEKDAY('RC PasteDataHere'!$B$7:$B$10000)=1,0,IF(WEEKDAY('RC PasteDataHere'!$B$7:$B$10000)=7,0,IF(HOUR('RC PasteDataHere'!$C$7:$C$10000)>20,IF(HOUR('RC PasteDataHere'!$C$7:$C$10000)<23,'RC PasteDataHere'!$E$7:$E$10000,0),0))))))) -> 0 | AB13: 0
A14: October | B14: =SUM(IF(MONTH('RC PasteDataHere'!$B$7:$B$10000)=10,'RC PasteDataHere'!$E$7:$E$10000,0)) -> 0 | H14: October | I14: =SUM(IF(MONTH('RC PasteDataHere'!$B$7:$B$10000)=10,IF(WEEKDAY('RC PasteDataHere'!$B$7:$B$10000)=1,0,IF(WEEKDAY('RC PasteDataHere'!$B$7:$B$10000)=7,0,IF(HOUR('RC PasteDataHere'!$C$7:$C$10000)>12,IF(HOUR('RC PasteDataHere'!$C$7:$C$10000)<19,'RC PasteDataHere'!$E$7:$E$10000,0),0))))) -> 0 | J14: =SUM(SUM(IF(MONTH('RC PasteDataHere'!$B$7:$B$10000)=10,IF(WEEKDAY('RC PasteDataHere'!$B$7:$B$10000)=1,0,IF(WEEKDAY('RC PasteDataHere'!$B$7:$B$10000)=10,0,IF(HOUR('RC PasteDataHere'!$C$7:$C$10000)>9,IF(HOUR('RC PasteDataHere'!$C$7:$C$10000)<13,'RC PasteDataHere'!$E$7:$E$10000,0),0)))),SUM(IF(MONTH('RC PasteDataHere'!$B$7:$B$10000)=10,IF(WEEKDAY('RC PasteDataHere'!$B$7:$B$10000)=1,0,IF(WEEKDAY('RC PasteDataHere'!$B$7:$B$10000)=10,0,IF(HOUR('RC PasteDataHere'!$C$7:$C$10000)>18,IF(HOUR('RC PasteDataHere'!$C$7:$C$10000)<21,'RC PasteDataHere'!$E$7:$E$10000,0),0))))),SUM(IF(MONTH('RC PasteDataHere'!$B$7:$B$10000)=10,IF(WEEKDAY('RC PasteDataHere'!$B$7:$B$10000)=1,IF(HOUR('RC PasteDataHere'!$C$7:$C$10000)>16,IF(HOUR('RC PasteDataHere'!$C$7:$C$10000)<20,'RC PasteDataHere'!$E$7:$E$10000,0),0)))),SUM(IF(MONTH('RC PasteDataHere'!$B$7:$B$10000)=10,IF(WEEKDAY('RC PasteDataHere'!$B$7:$B$10000)=10,IF(HOUR('RC PasteDataHere'!$C$7:$C$10000)>16,IF(HOUR('RC PasteDataHere'!$C$7:$C$10000)<20,'RC PasteDataHere'!$E$7:$E$10000,0),0)))))) -> 0 | K14: 0 | P14: October | Q14: =SUM(IF(MONTH('RC PasteDataHere'!$B$7:$B$10000)=10,IF(WEEKDAY('RC PasteDataHere'!$B$7:$B$10000)=1,0,IF(WEEKDAY('RC PasteDataHere'!$B$7:$B$10000)=7,0,IF(HOUR('RC PasteDataHere'!$C$7:$C$10000)>14,IF(HOUR('RC PasteDataHere'!$C$7:$C$10000)<20,'RC PasteDataHere'!$E$7:$E$10000,0),0))))) -> 0 | R14: 0 | U14: October | V14: =SUM(IF(MONTH('RC PasteDataHere'!$B$7:$B$10000)=10,IF(WEEKDAY('RC PasteDataHere'!$B$7:$B$10000)=1,0,IF(WEEKDAY('RC PasteDataHere'!$B$7:$B$10000)=7,0,IF(HOUR('RC PasteDataHere'!$C$7:$C$10000)>15,IF(HOUR('RC PasteDataHere'!$C$7:$C$10000)<21,'RC PasteDataHere'!$E$7:$E$10000,0),0))))) -> 0 | W14: 0 | Y14: October | Z14: =SUM(SUM(IF(MONTH('RC PasteDataHere'!$B$7:$B$10000)=10,IF(WEEKDAY('RC PasteDataHere'!$B$7:$B$10000)=1,0,IF(WEEKDAY('RC PasteDataHere'!$B$7:$B$10000)=7,0,IF(HOUR('RC PasteDataHere'!$C$7:$C$10000)>12,IF(HOUR('RC PasteDataHere'!$C$7:$C$10000)<21,'RC PasteDataHere'!$E$7:$E$10000,0),0)))),SUM(IF(MONTH('RC PasteDataHere'!$B$7:$B$10000)=10,IF(WEEKDAY('RC PasteDataHere'!$B$7:$B$10000)=1,IF(HOUR('RC PasteDataHere'!$C$7:$C$10000)>14,IF(HOUR('RC PasteDataHere'!$C$7:$C$10000)<19,'RC PasteDataHere'!$E$7:$E$10000,0),0)))),SUM(IF(MONTH('RC PasteDataHere'!$B$7:$B$10000)=10,IF(WEEKDAY('RC PasteDataHere'!$B$7:$B$10000)=7,IF(HOUR('RC PasteDataHere'!$C$7:$C$10000)>14,IF(HOUR('RC PasteDataHere'!$C$7:$C$10000)<19,'RC PasteDataHere'!$E$7:$E$10000,0),0)))))) -> 0 | AA14: =SUM(SUM(IF(MONTH('RC PasteDataHere'!$B$7:$B$10000)=10,IF(WEEKDAY('RC PasteDataHere'!$B$7:$B$10000)=1,0,IF(WEEKDAY('RC PasteDataHere'!$B$7:$B$10000)=7,0,IF(HOUR('RC PasteDataHere'!$C$7:$C$10000)>6,IF(HOUR('RC PasteDataHere'!$C$7:$C$10000)<14,'RC PasteDataHere'!$E$7:$E$10000,0),0)))),SUM(IF(MONTH('RC PasteDataHere'!$B$7:$B$10000)=10,IF(WEEKDAY('RC PasteDataHere'!$B$7:$B$10000)=1,0,IF(WEEKDAY('RC PasteDataHere'!$B$7:$B$10000)=7,0,IF(HOUR('RC PasteDataHere'!$C$7:$C$10000)>20,IF(HOUR('RC PasteDataHere'!$C$7:$C$10000)<23,'RC PasteDataHere'!$E$7:$E$10000,0),0))))))) -> 0 | AB14: 0
A15: November | B15: =SUM(IF(MONTH('RC PasteDataHere'!$B$7:$B$10000)=11,'RC PasteDataHere'!$E$7:$E$10000,0)) -> 0 | H15: November | J15: =SUM(IF(MONTH('RC PasteDataHere'!$B$7:$B$10000)=11,IF(WEEKDAY('RC PasteDataHere'!$B$7:$B$10000)=1,0,IF(WEEKDAY('RC PasteDataHere'!$B$7:$B$10000)=7,0,IF(HOUR('RC PasteDataHere'!$C$7:$C$10000)>16,IF(HOUR('RC PasteDataHere'!$C$7:$C$10000)<20,'RC PasteDataHere'!$E$7:$E$10000,0),0))))) -> 0 | K15: =B15-J15 -> 0 | P15: November | Q15: =SUM(IF(MONTH('RC PasteDataHere'!$B$7:$B$10000)=11,IF(WEEKDAY('RC PasteDataHere'!$B$7:$B$10000)=1,0,IF(WEEKDAY('RC PasteDataHere'!$B$7:$B$10000)=7,0,IF(HOUR('RC PasteDataHere'!$C$7:$C$10000)>14,IF(HOUR('RC PasteDataHere'!$C$7:$C$10000)<20,'RC PasteDataHere'!$E$7:$E$10000,0),0))))) -> 0 | R15: 0 | U15: November | V15: =SUM(IF(MONTH('RC PasteDataHere'!$B$7:$B$10000)=11,IF(WEEKDAY('RC PasteDataHere'!$B$7:$B$10000)=1,0,IF(WEEKDAY('RC PasteDataHere'!$B$7:$B$10000)=7,0,IF(HOUR('RC PasteDataHere'!$C$7:$C$10000)>15,IF(HOUR('RC PasteDataHere'!$C$7:$C$10000)<21,'RC PasteDataHere'!$E$7:$E$10000,0),0))))) -> 0 | W15: 0 | Y15: November | Z15: =SUM(SUM(IF(MONTH('RC PasteDataHere'!$B$7:$B$10000)=11,IF(WEEKDAY('RC PasteDataHere'!$B$7:$B$10000)=1,0,IF(WEEKDAY('RC PasteDataHere'!$B$7:$B$10000)=7,0,IF(HOUR('RC PasteDataHere'!$C$7:$C$10000)>12,IF(HOUR('RC PasteDataHere'!$C$7:$C$10000)<21,'RC PasteDataHere'!$E$7:$E$10000,0),0)))),SUM(IF(MONTH('RC PasteDataHere'!$B$7:$B$10000)=11,IF(WEEKDAY('RC PasteDataHere'!$B$7:$B$10000)=1,IF(HOUR('RC PasteDataHere'!$C$7:$C$10000)>14,IF(HOUR('RC PasteDataHere'!$C$7:$C$10000)<19,'RC PasteDataHere'!$E$7:$E$10000,0),0)))),SUM(IF(MONTH('RC PasteDataHere'!$B$7:$B$10000)=11,IF(WEEKDAY('RC PasteDataHere'!$B$7:$B$10000)=7,IF(HOUR('RC PasteDataHere'!$C$7:$C$10000)>14,IF(HOUR('RC PasteDataHere'!$C$7:$C$10000)<19,'RC PasteDataHere'!$E$7:$E$10000,0),0)))))) -> 0 | AA15: =SUM(SUM(IF(MONTH('RC PasteDataHere'!$B$7:$B$10000)=11,IF(WEEKDAY('RC PasteDataHere'!$B$7:$B$10000)=1,0,IF(WEEKDAY('RC PasteDataHere'!$B$7:$B$10000)=7,0,IF(HOUR('RC PasteDataHere'!$C$7:$C$10000)>6,IF(HOUR('RC PasteDataHere'!$C$7:$C$10000)<14,'RC PasteDataHere'!$E$7:$E$10000,0),0)))),SUM(IF(MONTH('RC PasteDataHere'!$B$7:$B$10000)=11,IF(WEEKDAY('RC PasteDataHere'!$B$7:$B$10000)=1,0,IF(WEEKDAY('RC PasteDataHere'!$B$7:$B$10000)=7,0,IF(HOUR('RC PasteDataHere'!$C$7:$C$10000)>20,IF(HOUR('RC PasteDataHere'!$C$7:$C$10000)<23,'RC PasteDataHere'!$E$7:$E$10000,0),0))))))) -> 0 | AB15: 0
A16: December | B16: =SUM(IF(MONTH('RC PasteDataHere'!$B$7:$B$10000)=12,'RC PasteDataHere'!$E$7:$E$10000,0)) -> 0 | H16: December | J16: =SUM(IF(MONTH('RC PasteDataHere'!$B$7:$B$10000)=12,IF(WEEKDAY('RC PasteDataHere'!$B$7:$B$10000)=1,0,IF(WEEKDAY('RC PasteDataHere'!$B$7:$B$10000)=7,0,IF(HOUR('RC PasteDataHere'!$C$7:$C$10000)>16,IF(HOUR('RC PasteDataHere'!$C$7:$C$10000)<20,'RC PasteDataHere'!$E$7:$E$10000,0),0))))) -> 0 | K16: =B16-J16 -> 0 | P16: December | Q16: =SUM(IF(MONTH('RC PasteDataHere'!$B$7:$B$10000)=12,IF(WEEKDAY('RC PasteDataHere'!$B$7:$B$10000)=1,0,IF(WEEKDAY('RC PasteDataHere'!$B$7:$B$10000)=7,0,IF(HOUR('RC PasteDataHere'!$C$7:$C$10000)>14,IF(HOUR('RC PasteDataHere'!$C$7:$C$10000)<20,'RC PasteDataHere'!$E$7:$E$10000,0),0))))) -> 0 | R16: 0 | U16: December | V16: =SUM(IF(MONTH('RC PasteDataHere'!$B$7:$B$10000)=12,IF(WEEKDAY('RC PasteDataHere'!$B$7:$B$10000)=1,0,IF(WEEKDAY('RC PasteDataHere'!$B$7:$B$10000)=7,0,IF(HOUR('RC PasteDataHere'!$C$7:$C$10000)>15,IF(HOUR('RC PasteDataHere'!$C$7:$C$10000)<21,'RC PasteDataHere'!$E$7:$E$10000,0),0))))) -> 0 | W16: 0 | Y16: December | Z16: =SUM(SUM(IF(MONTH('RC PasteDataHere'!$B$7:$B$10000)=12,IF(WEEKDAY('RC PasteDataHere'!$B$7:$B$10000)=1,0,IF(WEEKDAY('RC PasteDataHere'!$B$7:$B$10000)=7,0,IF(HOUR('RC PasteDataHere'!$C$7:$C$10000)>12,IF(HOUR('RC PasteDataHere'!$C$7:$C$10000)<21,'RC PasteDataHere'!$E$7:$E$10000,0),0)))),SUM(IF(MONTH('RC PasteDataHere'!$B$7:$B$10000)=12,IF(WEEKDAY('RC PasteDataHere'!$B$7:$B$10000)=1,IF(HOUR('RC PasteDataHere'!$C$7:$C$10000)>14,IF(HOUR('RC PasteDataHere'!$C$7:$C$10000)<19,'RC PasteDataHere'!$E$7:$E$10000,0),0)))),SUM(IF(MONTH('RC PasteDataHere'!$B$7:$B$10000)=12,IF(WEEKDAY('RC PasteDataHere'!$B$7:$B$10000)=7,IF(HOUR('RC PasteDataHere'!$C$7:$C$10000)>14,IF(HOUR('RC PasteDataHere'!$C$7:$C$10000)<19,'RC PasteDataHere'!$E$7:$E$10000,0),0)))))) -> 0 | AA16: =SUM(SUM(IF(MONTH('RC PasteDataHere'!$B$7:$B$10000)=12,IF(WEEKDAY('RC PasteDataHere'!$B$7:$B$10000)=1,0,IF(WEEKDAY('RC PasteDataHere'!$B$7:$B$10000)=7,0,IF(HOUR('RC PasteDataHere'!$C$7:$C$10000)>6,IF(HOUR('RC PasteDataHere'!$C$7:$C$10000)<14,'RC PasteDataHere'!$E$7:$E$10000,0),0)))),SUM(IF(MONTH('RC PasteDataHere'!$B$7:$B$10000)=12,IF(WEEKDAY('RC PasteDataHere'!$B$7:$B$10000)=1,0,IF(WEEKDAY('RC PasteDataHere'!$B$7:$B$10000)=7,0,IF(HOUR('RC PasteDataHere'!$C$7:$C$10000)>20,IF(HOUR('RC PasteDataHere'!$C$7:$C$10000)<23,'RC PasteDataHere'!$E$7:$E$10000,0),0))))))) -> 0 | AB16: 0
B17: =SUM(B5:B16) -> 0 | I17: =SUM(I5:I16) -> 0 | J17: =SUM(J5:J16) -> 0 | K17: =SUM(K5:K16) -> 0 | Q17: =SUM(Q5:Q16) -> 0 | R17: =SUM(R5:R16) -> 0 | V17: =SUM(V5:V16) -> 0 | W17: =SUM(W5:W16) -> 0 | Z17: =SUM(Z5:Z16) -> 0 | AA17: =SUM(AA5:AA16) -> 0 | AB17: =SUM(AB5:AB16) -> 0
A19: E1 Estimate | H19: E6 Estimate | P19: ETOUA Estimate | U19: ETOUB Estimate | Y19: EVA Estimate
B20: t1 | C20: t2 | D20: t3 | E20: Total | I20: t1 | J20: t2 | K20: t3 | L20: Total | Q20: t1 | R20: t2 | S20: Total | V20: Total | Z20: Total
A21: January | B21: =B55*B$36 -> 0 | C21: =C55*B$37 -> 0 | D21: =D55*B38 -> 0 | E21: =SUM(B21:D21) -> 0 | H21: January | I21: =SUM($J5/SUM($I5:$K5)*B55*J$42,$K5/SUM($I5:$K5)*B55*K$42) ->  | J21: =SUM($J5/SUM($I5:$K5)*C55*J$43,$K5/SUM($I5:$K5)*C55*K$43) ->  | K21: =SUM($J5/SUM($I5:$K5)*D55*J$44,$K5/SUM($I5:$K5)*D55*K$44) ->  | L21: =SUM(I21:K21) ->  | P21: January | Q21: =SUM(Q5/SUM(Q5:R5)*B55*Q$40,R5/SUM(Q5:R5)*B55*R$40) ->  | R21: =SUM(Q5/SUM(Q5:R5)*(B5-B55)*Q$41,R5/SUM(Q5:R5)*(B5-B55)*R$41) ->  | S21: =SUM(Q21:R21) ->  | U21: January | V21: =SUM(V5*V$37,W5*W$37) -> 0 | Y21: January | Z21: =SUM(Z5*Z$37,AA5*AA$37,AB5*AB$37) -> 0
A22: February | B22: =B56*B$36 -> 0 | C22: 0 | D22: =D56*B$38 -> 0 | E22: =SUM(B22:D22) -> 0 | H22: February | I22: =SUM($J6/SUM($I6:$K6)*B56*J$42,$K6/SUM($I6:$K6)*B56*K$42) ->  | J22: =SUM($J6/SUM($I6:$K6)*C56*J$43,$K6/SUM($I6:$K6)*C56*K$43) ->  | K22: =SUM($J6/SUM($I6:$K6)*D56*J$44,$K6/SUM($I6:$K6)*D56*K$44) ->  | L22: =SUM(I22:K22) ->  | P22: February | Q22: =SUM(Q6/SUM(Q6:R6)*B56*Q$40,R6/SUM(Q6:R6)*B56*R$40) ->  | R22: =SUM(Q6/SUM(Q6:R6)*(B6-B56)*Q$41,R6/SUM(Q6:R6)*(B6-B56)*R$41) ->  | U22: February | V22: =SUM(V6*V$37,W6*W$37) -> 0 | Y22: February | Z22: =SUM(Z6*Z$37,AA6*AA$37,AB6*AB$37) -> 0
A23: March | B23: 0 | C23: 0 | D23: 0 | E23: 0 | H23: March | I23: =SUM($J7/SUM($I7:$K7)*B57*J$42,$K7/SUM($I7:$K7)*B57*K$42) ->  | J23: =SUM($J7/SUM($I7:$K7)*C57*J$43,$K7/SUM($I7:$K7)*C57*K$43) ->  | K23: =SUM($J7/SUM($I7:$K7)*D57*J$44,$K7/SUM($I7:$K7)*D57*K$44) ->  | P23: March | Q23: =SUM(Q7/SUM(Q7:R7)*B57*Q$40,R7/SUM(Q7:R7)*B57*R$40) ->  | R23: =SUM(Q7/SUM(Q7:R7)*(B7-B57)*Q$41,R7/SUM(Q7:R7)*(B7-B57)*R$41) ->  | U23: March | V23: =SUM(V7*V$37,W7*W$37) -> 0 | Y23: March | Z23: =SUM(Z7*Z$37,AA7*AA$37,AB7*AB$37) -> 0
A24: April | B24: 0 | C24: 0 | D24: 0 | E24: 0 | H24: April | I24: =SUM($J8/SUM($I8:$K8)*B58*J$42,$K8/SUM($I8:$K8)*B58*K$42) ->  | J24: =SUM($J8/SUM($I8:$K8)*C58*J$43,$K8/SUM($I8:$K8)*C58*K$43) ->  | K24: =SUM($J8/SUM($I8:$K8)*D58*J$44,$K8/SUM($I8:$K8)*D58*K$44) ->  | P24: April | Q24: =SUM(Q8/SUM(Q8:R8)*B58*Q$40,R8/SUM(Q8:R8)*B58*R$40) ->  | R24: =SUM(Q8/SUM(Q8:R8)*(B8-B58)*Q$41,R8/SUM(Q8:R8)*(B8-B58)*R$41) ->  | U24: April | V24: =SUM(V8*V$37,W8*W$37) -> 0 | Y24: April | Z24: =SUM(Z8*Z$37,AA8*AA$37,AB8*AB$37) -> 0
A25: May | B25: 0 | C25: 0 | D25: 0 | E25: 0 | H25: May | I25: =SUM($I9/SUM($I9:$K9)*B59*I$37,$J9/SUM($I9:$K9)*B59*J$37,$K9/SUM($I9:$K9)*B59*K$37) ->  | P25: May | Q25: =SUM(Q9/SUM(Q9:R9)*B59*Q$40,R9/SUM(Q9:R9)*B59*R$40) ->  | R25: =SUM(Q9/SUM(Q9:R9)*(B9-B59)*Q$41,R9/SUM(Q9:R9)*(B9-B59)*R$41) ->  | U25: May | V25: =SUM(V9*V$36,W9*W$36) -> 0 | Y25: May | Z25: =SUM(Z9*Z$36,AA9*AA$36,AB9*AB$36) -> 0
A26: June | B26: 0 | C26: 0 | D26: 0 | E26: 0 | H26: June | P26: June | Q26: =SUM(Q10/SUM(Q10:R10)*B60*Q$37,R10/SUM(Q10:R10)*B60*R$37) ->  | R26: =SUM(Q10/SUM(Q10:R10)*(B10-B60)*Q$38,R10/SUM(Q10:R10)*(B10-B60)*R$38) ->  | U26: June | V26: 0 | Y26: June | Z26: 0
A27: July | B27: 0 | C27: 0 | D27: 0 | E27: 0 | H27: July | P27: July | Q27: =SUM(Q11/SUM(Q11:R11)*B61*Q$37,R11/SUM(Q11:R11)*B61*R$37) ->  | R27: =SUM(Q11/SUM(Q11:R11)*(B11-B61)*Q$38,R11/SUM(Q11:R11)*(B11-B61)*R$38) ->  | U27: July | V27: 0 | Y27: July | Z27: 0
A28: August | B28: 0 | C28: 0 | D28: 0 | E28: 0 | H28: August | P28: August | Q28: =SUM(Q12/SUM(Q12:R12)*B62*Q$37,R12/SUM(Q12:R12)*B62*R$37) ->  | R28: =SUM(Q12/SUM(Q12:R12)*(B12-B62)*Q$38,R12/SUM(Q12:R12)*(B12-B62)*R$38) ->  | U28: August | V28: 0 | Y28: August | Z28: 0
A29: September | B29: 0 | C29: 0 | D29: 0 | E29: 0 | H29: September | P29: September | Q29: =SUM(Q13/SUM(Q13:R13)*B63*Q$37,R13/SUM(Q13:R13)*B63*R$37) ->  | R29: =SUM(Q13/SUM(Q13:R13)*(B13-B63)*Q$38,R13/SUM(Q13:R13)*(B13-B63)*R$38) ->  | U29: September | V29: 0 | Y29: September | Z29: 0
A30: October | B30: 0 | C30: 0 | D30: 0 | E30: 0 | H30: October | P30: October | Q30: =SUM(Q14/SUM(Q14:R14)*B64*Q$40,R14/SUM(Q14:R14)*B64*R$40) ->  | R30: =SUM(Q14/SUM(Q14:R14)*(B14-B64)*Q$41,R14/SUM(Q14:R14)*(B14-B64)*R$41) ->  | U30: October | V30: 0 | Y30: October | Z30: 0
A31: November | B31: 0 | C31: 0 | D31: 0 | E31: 0 | H31: November | I31: =SUM($J15/SUM($I15:$K15)*B65*J$42,$K15/SUM($I15:$K15)*B65*K$42) ->  | J31: =SUM($J15/SUM($I15:$K15)*C65*J$43,$K15/SUM($I15:$K15)*C65*K$43) ->  | K31: =SUM($J15/SUM($I15:$K15)*D65*J$44,$K15/SUM($I15:$K15)*D65*K$44) ->  | P31: November | Q31: =SUM(Q15/SUM(Q15:R15)*B65*Q$40,R15/SUM(Q15:R15)*B65*R$40) ->  | R31: =SUM(Q15/SUM(Q15:R15)*(B15-B65)*Q$41,R15/SUM(Q15:R15)*(B15-B65)*R$41) ->  | U31: November | V31: =SUM(V15*V$37,W15*W$37) -> 0 | Y31: November | Z31: =SUM(Z15*Z$37,AA15*AA$37,AB15*AB$37) -> 0
A32: December | B32: 0 | C32: 0 | D32: 0 | E32: 0 | H32: December | I32: =SUM($J16/SUM($I16:$K16)*B66*J$42,$K16/SUM($I16:$K16)*B66*K$42) ->  | J32: =SUM($J16/SUM($I16:$K16)*C66*J$43,$K16/SUM($I16:$K16)*C66*K$43) ->  | K32: =SUM($J16/SUM($I16:$K16)*D66*J$44,$K16/SUM($I16:$K16)*D66*K$44) ->  | P32: December | Q32: =SUM(Q16/SUM(Q16:R16)*B66*Q$40,R16/SUM(Q16:R16)*B66*R$40) ->  | R32: =SUM(Q16/SUM(Q16:R16)*(B16-B66)*Q$41,R16/SUM(Q16:R16)*(B16-B66)*R$41) ->  | U32: December | V32: =SUM(V16*V$37,W16*W$37) -> 0 | Y32: December | Z32: =SUM(Z16*Z$37,AA16*AA$37,AB16*AB$37) -> 0
E33: =SUM(E21:E32) -> 0 | L33: =SUM(L21:L32) ->  | S33: =SUM(S21:S32) ->  | V33: =SUM(V21:V32) -> 0 | Z33: =SUM(Z21:Z32) -> 0
D34: NEM Bonus | E34: =SUMIF(B5:B16,"<0") -> 0 | K34: NEM Bonus | L34: =SUMIF(I5:K16,"<0")*E51 -> 0 | R34: NEM Bonus | S34: =SUMIF(Q5:R16,"<0")*E51 -> 0 | U34: NEM Bonus | V34: =SUMIF(V5:W16,"<0")*E51 -> 0 | Y34: NEM Bonus | Z34: =SUMIF(Z5:AB16,"<0")*E51 -> 0
A35: E1 Rates | H35: E6 Rates | I35: Peak | J35: Partial | K35: Off | P35: ETOUA Rates | Q35: Peak | R35: Off | U35: ETOUB Rates | V35: Peak | W35: Off | Y35: EVA Rate | Z35: Peak | AA35: Partial | AB35: Off
A36: Tier 1 | B36: =Rates!B3-Rates!B24+Rates!B42+E48 -> 0.20933 | H36: Summer | P36: Summer | U36: Summer | V36: ='Rebundled Rates'!B22 -> 0.36361 | W36: ='Rebundled Rates'!B23 -> 0.26261 | Y36: Summer | Z36: ='Rebundled Rates'!B28 -> 0.46989 | AA36: ='Rebundled Rates'!B29 -> 0.25521 | AB36: ='Rebundled Rates'!B30 -> 0.1207
A37: Tier 2 | B37: =Rates!L3-Rates!B24+Rates!B42+E48 -> 0.2656 | H37: Tier 1 | I37: =Rates!C15-Rates!C36+Rates!C54+$E$48 -> 0.36069 | J37: =Rates!D15-Rates!D36+Rates!D54+$E$48 -> 0.25205 | K37: =Rates!E15-Rates!E36+Rates!E54+$E$48 -> 0.17859 | P37: Tier 1 | Q37: =Q38+Rates!D19 -> 0.30684 | R37: =R38+Rates!D19 -> 0.23278 | U37: Winter | V37: ='Rebundled Rates'!B24 -> 0.22888 | W37: ='Rebundled Rates'!B25 -> 0.21045 | Y37: Winter | Z37: ='Rebundled Rates'!B31 -> 0.33001 | AA37: ='Rebundled Rates'!B32 -> 0.20667 | AB37: ='Rebundled Rates'!B33 -> 0.11787
A38: Tier 3 | B38: =Rates!U3-Rates!B24+Rates!B42+E48 -> 0.47167 | C38: (High Usage) | H38: Tier 2 | I38: =Rates!M15-Rates!C36+Rates!C54+$E$48 -> 0.4407 | J38: =Rates!N15-Rates!D36+Rates!D54+$E$48 -> 0.33206 | K38: =Rates!O15-Rates!E36+Rates!E54+$E$48 -> 0.2586 | P38: Tier 2 | Q38: =Rates!M5-Rates!C26+Rates!C44+E48 -> 0.38685 | R38: =Rates!O5-Rates!E26+Rates!E44+E48 -> 0.31279
H39: Tier 3 | I39: =I38 -> 0.4407 | J39: =J38 -> 0.33206 | K39: 0.2586 | P39: Winter
P40: Tier 1 | Q40: =Q41+Rates!D19 -> 0.19123 | R40: =R41+Rates!D19 -> 0.17723
A41: Customer Baseline | C41: ='RC Results'!B5 -> XB | H41: Winter | P41: Tier 2 | Q41: =Rates!P5-Rates!F26+Rates!F44+E48 -> 0.27124 | R41: =Rates!R5-Rates!H26+Rates!H44+E48 -> 0.25724
B42: Summer Alloc | C42: Winter Alloc | H42: Tier 1 | J42: =Rates!G15-Rates!G36+Rates!G54+$E$48 -> 0.19834 | K42: =Rates!H15-Rates!H36+Rates!H54+$E$48 -> 0.18233
A43: Tier 1 | B43: =VLOOKUP(C41,A48:C52,2,0)*31 -> 313.1 | C43: =VLOOKUP(C41,A48:C52,3,0)*31 -> 337.9 | H43: Tier 2 | J43: =Rates!Q15-Rates!G36+Rates!G54+$E$48 -> 0.27835 | K43: =Rates!R15-Rates!H36+Rates!H54+$E$48 -> 0.26234
A44: Tier 2 | B44: =B43*3 -> 939.3 | C44: =C43*3 -> 1013.7 | H44: Tier 3 | J44: =J43 -> 0.27835 | K44: =K43 -> 0.26234
A45: Tier 3
A47: Baselines | E47: PCIA/FF
B48: Summer | C48: Winter | E48: ='Data & Calculations'!D44 -> 0.03404
A49: TB | B49: ='Data & Calculations'!B31 -> 7 | C49: ='Data & Calculations'!C31 -> 8.5
A50: XB | B50: ='Data & Calculations'!B32 -> 10.1 | C50: ='Data & Calculations'!C32 -> 10.9 | E50: Nem Credit Rate
A51: TH | B51: ='Data & Calculations'!G32 -> 7 | C51: ='Data & Calculations'!H32 -> 8.2 | E51: 0.01
A52: XH | B52: ='Data & Calculations'!G33 -> 10.5 | C52: ='Data & Calculations'!H33 -> 10.6
A54: Usage Tiers | B54: T1 | C54: T2 | D54: T3
A55: January | B55: =IF(MIN(B5,C$43)>=0,MIN(B5,C$43),MAX(B5,-C$43)) -> 0 | C55: =IF(MIN(B5-B55,C$44)>=0,MIN(B5-B55,C$44),MAX(B5-B55,-C$44)) -> 0 | D55: =IF(B5-C55-B55>0,MAX(0,B5-C55-B55),MIN(0,B5-C55-B55)) -> 0
A56: February | B56: =IF(MIN(B6,C$43)>=0,MIN(B6,C$43),MAX(B6,-C$43)) -> 0 | C56: =IF(MIN(B6-B56,C$44)>=0,MIN(B6-B56,C$44),MAX(B6-B56,-C$44)) -> 0 | D56: =IF(B6-C56-B56>=0,MAX(0,B6-C56-B56),MIN(0,B6-C56-B56)) -> 0
A57: March | B57: =IF(MIN(B7,C$43)>=0,MIN(B7,C$43),MAX(B7,-C$43)) -> 0 | C57: =IF(MIN(B7-B57,C$44)>=0,MIN(B7-B57,C$44),MAX(B7-B57,-C$44)) -> 0 | D57: 0
A58: April | B58: =IF(MIN(B8,C$43)>=0,MIN(B8,C$43),MAX(B8,-C$43)) -> 0 | C58: =IF(MIN(B8-B58,C$44)>=0,MIN(B8-B58,C$44),MAX(B8-B58,-C$44)) -> 0 | D58: 0
A59: May | B59: =IF(MIN(B9,B$43)>=0,MIN(B9,B$43),MAX(B9,-B$43)) -> 0 | C59: =IF(MIN(B9-B59,B$44)>=0,MIN(B9-B59,B$44),MAX(B9-B59,-B$44)) -> 0 | D59: 0
A60: June | B60: 0 | C60: 0 | D60: 0
A61: July | B61: 0 | C61: 0 | D61: 0
A62: August | B62: 0 | C62: 0 | D62: 0
A63: September | B63: 0 | C63: 0 | D63: 0
A64: October | B64: 0 | C64: 0 | D64: 0
A65: November | B65: =IF(MIN(B15,C$43)>=0,MIN(B15,C$43),MAX(B15,-C$43)) -> 0 | C65: =IF(MIN(B15-B65,C$44)>=0,MIN(B15-B65,C$44),MAX(B15-B65,-C$44)) -> 0 | D65: 0
A66: December | B66: =IF(MIN(B16,C$43)>=0,MIN(B16,C$43),MAX(B16,-C$43)) -> 0 | C66: =IF(MIN(B16-B66,C$44)>=0,MIN(B16-B66,C$44),MAX(B16-B66,-C$44)) -> 0 | D66: 0

Sheet RC Results (hidden)
A1: ='RC PasteDataHere'!A1 -> 0 | B1: ='RC PasteDataHere'!B1 -> 0 | D1: Instructions: | F1: Download Green Button data from PG&E for a 12 month period.
A2: ='RC PasteDataHere'!A2 -> 0 | B2: ='RC PasteDataHere'!B2 -> 0 | F2: Paste into the appropriate tab below.
A3: ='RC PasteDataHere'!A3 -> 0 | B3: ='RC PasteDataHere'!B3 -> 0 | F3: Select the customer's baseline (geography and heating source) in cell B5.
A4: ='RC PasteDataHere'!A4 -> 0 | B4: ='RC PasteDataHere'!B4 -> 0 | F4: Review results.
A5: Customer Baseline | B5: XB
D6: Disclaimers: | F6: These estimates assume a billing period from the first to the last of each calendar month.
F7: Actual bill cycles may slightly change these results due to tiering.
F8: Holidays are not identified by this calculator, so their usage is not exempted and treated as off peak.
A11: Rate Option | B11: E1 | C11: E6 | D11: E-TOU-A | E11: E-TOU-B | F11: EV
A12: Description | B12: Non-TOU, basic rate | C12: TOU rate | D12: New TOU, tiered | E12: New TOU, untiered | F12: TOU, EV owners only
A13: Available? | B13: Yes | C13: No | D13: Yes | E13: Yes | F13: Yes
A14: Est. Annual Cost | B14: ='RC Calculations'!E33+'RC Calculations'!E34 -> 0 | C14: ='RC Calculations'!L33+'RC Calculations'!L34 ->  | D14: ='RC Calculations'!S33+'RC Calculations'!S34 ->  | E14: ='RC Calculations'!V33+'RC Calculations'!V34 -> 0 | F14: ='RC Calculations'!Z33+'RC Calculations'!Z34 -> 0

Sheet Changelog (hidden)
A1: Date | B1: Change
A2: 2016-04-29 | B2: Beta version completed, to staff for review.
A3: 2016-05-04 | B3: Cosmetic Changes
B4: Corrected EV rate description
B5: Hid and locked cell editing for public use to restrict potentially breaking calculations
A6: 2016-05-23 | B6: Replaced IFNA command with IFERROR; IFNA is not well supported in Excel. May need to replace with IF(ISERROR()) later.
A7: 2016-11-15 | B7: Rebundled Rates Added
A8: 2017-01-03 | B8: Updated for PG&E AET
A9: 2017-03-01 | B9: Changes for PG&E 3/1 change (tiers, etc)
B10: Updated Local Sol implementation date
B11: Added MCE 4/1 Rates
A12: 2017-03-22 | B12: Added Local Sol Rates
B13: Fixed EV/E6 rate transposition
A14: 2017-03-24 | B14: Removed Local Sol outputs (was confusing for customers)
A15: 2017-04-18 | B15: Updated Emissions Factors for 2015
